Workbook

Sheet Chancen
A1: Würfelseiten
A2: 0
A3: 0
A4: 0
A5: 1
A6: 2
A7: 3
A9: Schaden ohne Reroll
A10: Würfel | B10: 0 | C10: 1 | D10: 2 | E10: 3 | F10: 4 | G10: 5 | H10: 6 | I10: 7 | J10: 8 | K10: 9 | L10: 10 | M10: 11 | N10: 12 | O10: 13 | P10: 14 | Q10: 15 | R10: 16 | S10: 17 | T10: 18 | U10: 19 | V10: 20 | W10: 21 | X10: 22 | Y10: 23 | Z10: 24
A11: 1 | B11: 50.00% | C11: 16.67% | D11: 16.67% | E11: 16.67% | F11: 0.00% | G11: 0.00% | H11: 0.00% | I11: 0.00% | J11: 0.00% | K11: 0.00% | L11: 0.00% | M11: 0.00% | N11: 0.00% | O11: 0.00% | P11: 0.00% | Q11: 0.00% | R11: 0.00% | S11: 0.00% | T11: 0.00% | U11: 0.00% | V11: 0.00% | W11: 0.00% | X11: 0.00% | Y11: 0.00% | Z11: 0.00%
A12: 2 | B12: 25.00% | C12: 16.67% | D12: 19.44% | E12: 22.22% | F12: 8.33% | G12: 5.56% | H12: 2.78% | I12: 0.00% | J12: 0.00% | K12: 0.00% | L12: 0.00% | M12: 0.00% | N12: 0.00% | O12: 0.00% | P12: 0.00% | Q12: 0.00% | R12: 0.00% | S12: 0.00% | T12: 0.00% | U12: 0.00% | V12: 0.00% | W12: 0.00% | X12: 0.00% | Y12: 0.00% | Z12: 0.00%
A13: 3 | B13: 12.50% | C13: 12.50% | D13: 16.67% | E13: 21.30% | F13: 13.89% | G13: 11.11% | H13: 7.41% | I13: 2.78% | J13: 1.39% | K13: 0.46% | L13: 0.00% | M13: 0.00% | N13: 0.00% | O13: 0.00% | P13: 0.00% | Q13: 0.00% | R13: 0.00% | S13: 0.00% | T13: 0.00% | U13: 0.00% | V13: 0.00% | W13: 0.00% | X13: 0.00% | Y13: 0.00% | Z13: 0.00%
A14: 4 | B14: 6.25% | C14: 8.33% | D14: 12.50% | E14: 17.59% | F14: 15.35% | G14: 14.20% | H14: 11.42% | I14: 6.79% | J14: 4.24% | K14: 2.16% | L14: 0.77% | M14: 0.31% | N14: 0.08% | O14: 0.00% | P14: 0.00% | Q14: 0.00% | R14: 0.00% | S14: 0.00% | T14: 0.00% | U14: 0.00% | V14: 0.00% | W14: 0.00% | X14: 0.00% | Y14: 0.00% | Z14: 0.00%
A15: 5 | B15: 3.13% | C15: 5.21% | D15: 8.68% | E15: 13.31% | F15: 14.08% | G15: 14.67% | H15: 13.57% | I15: 10.22% | J15: 7.52% | K15: 4.82% | L15: 2.58% | M15: 1.35% | N15: 0.58% | O15: 0.19% | P15: 0.06% | Q15: 0.01% | R15: 0.00% | S15: 0.00% | T15: 0.00% | U15: 0.00% | V15: 0.00% | W15: 0.00% | X15: 0.00% | Y15: 0.00% | Z15: 0.00%
A16: 6 | B16: 1.56% | C16: 3.13% | D16: 5.73% | E16: 9.49% | F16: 11.57% | G16: 13.35% | H16: 13.79% | I16: 12.17% | J16: 10.17% | K16: 7.63% | L16: 5.05% | M16: 3.16% | N16: 1.75% | O16: 0.85% | P16: 0.39% | Q16: 0.15% | R16: 0.05% | S16: 0.01% | T16: 0.00% | U16: 0.00% | V16: 0.00% | W16: 0.00% | X16: 0.00% | Y16: 0.00% | Z16: 0.00%
A17: 7 | B17: 0.78% | C17: 1.82% | D17: 3.65% | E17: 6.48% | F17: 8.84% | G17: 11.14% | H17: 12.63% | I17: 12.54% | J17: 11.64% | K17: 9.84% | L17: 7.52% | M17: 5.39% | N17: 3.52% | O17: 2.09% | P17: 1.15% | Q17: 0.57% | R17: 0.25% | S17: 0.10% | T17: 0.04% | U17: 0.01% | V17: 0.00% | W17: 0.00% | X17: 0.00% | Y17: 0.00% | Z17: 0.00%
A18: 8 | B18: 0.39% | C18: 1.04% | D18: 2.26% | E18: 4.28% | F18: 6.41% | G18: 8.73% | H18: 10.73% | I18: 11.70% | J18: 11.87% | K18: 11.05% | L18: 9.43% | M18: 7.53% | N18: 5.55% | O18: 3.78% | P18: 2.41% | Q18: 1.41% | R18: 0.76% | S18: 0.38% | T18: 0.17% | U18: 0.07% | V18: 0.03% | W18: 0.01% | X18: 0.00% | Y18: 0.00% | Z18: 0.00%
A20: Schaden mit Reroll
A21: Würfel | B21: 0 | C21: 1 | D21: 2 | E21: 3 | F21: 4 | G21: 5 | H21: 6 | I21: 7 | J21: 8 | K21: 9 | L21: 10 | M21: 11 | N21: 12 | O21: 13 | P21: 14 | Q21: 15 | R21: 16 | S21: 17 | T21: 18 | U21: 19 | V21: 20 | W21: 21 | X21: 22 | Y21: 23 | Z21: 24
A22: 1 | B22: 25.00% | C22: 19.44% | D22: 25.00% | E22: 30.56% | F22: 0.00% | G22: 0.00% | H22: 0.00% | I22: 0.00% | J22: 0.00% | K22: 0.00% | L22: 0.00% | M22: 0.00% | N22: 0.00% | O22: 0.00% | P22: 0.00% | Q22: 0.00% | R22: 0.00% | S22: 0.00% | T22: 0.00% | U22: 0.00% | V22: 0.00% | W22: 0.00% | X22: 0.00% | Y22: 0.00% | Z22: 0.00%
A23: 2 | B23: 12.50% | C23: 12.50% | D23: 17.13% | E23: 22.22% | F23: 15.74% | G23: 12.50% | H23: 7.41% | I23: 0.00% | J23: 0.00% | K23: 0.00% | L23: 0.00% | M23: 0.00% | N23: 0.00% | O23: 0.00% | P23: 0.00% | Q23: 0.00% | R23: 0.00% | S23: 0.00% | T23: 0.00% | U23: 0.00% | V23: 0.00% | W23: 0.00% | X23: 0.00% | Y23: 0.00% | Z23: 0.00%
A24: 3 | B24: 6.25% | C24: 8.33% | D24: 12.50% | E24: 17.67% | F24: 15.59% | G24: 14.66% | H24: 11.96% | I24: 7.25% | J24: 4.17% | K24: 1.62% | L24: 0.00% | M24: 0.00% | N24: 0.00% | O24: 0.00% | P24: 0.00% | Q24: 0.00% | R24: 0.00% | S24: 0.00% | T24: 0.00% | U24: 0.00% | V24: 0.00% | W24: 0.00% | X24: 0.00% | Y24: 0.00% | Z24: 0.00%
A25: 4 | B25: 3.13% | C25: 5.21% | D25: 8.68% | E25: 13.31% | F25: 14.09% | G25: 14.72% | H25: 13.70% | I25: 10.42% | J25: 7.73% | K25: 4.95% | L25: 2.57% | M25: 1.16% | N25: 0.33% | O25: 0.00% | P25: 0.00% | Q25: 0.00% | R25: 0.00% | S25: 0.00% | T25: 0.00% | U25: 0.00% | V25: 0.00% | W25: 0.00% | X25: 0.00% | Y25: 0.00% | Z25: 0.00%
A26: 5 | B26: 1.56% | C26: 3.13% | D26: 5.73% | E26: 9.49% | F26: 11.57% | G26: 13.35% | H26: 13.81% | I26: 12.20% | J26: 10.23% | K26: 7.72% | L26: 5.13% | M26: 3.21% | N26: 1.74% | O26: 0.78% | P26: 0.29% | Q26: 0.07% | R26: 0.00% | S26: 0.00% | T26: 0.00% | U26: 0.00% | V26: 0.00% | W26: 0.00% | X26: 0.00% | Y26: 0.00% | Z26: 0.00%
A27: 6 | B27: 0.78% | C27: 1.82% | D27: 3.65% | E27: 6.48% | F27: 8.84% | G27: 11.14% | H27: 12.63% | I27: 12.54% | J27: 11.65% | K27: 9.85% | L27: 7.55% | M27: 5.43% | N27: 3.55% | O27: 2.10% | P27: 1.15% | Q27: 0.54% | R27: 0.22% | S27: 0.07% | T27: 0.01% | U27: 0.00% | V27: 0.00% | W27: 0.00% | X27: 0.00% | Y27: 0.00% | Z27: 0.00%
A28: 7 | B28: 0.39% | C28: 1.04% | D28: 2.26% | E28: 4.28% | F28: 6.41% | G28: 8.73% | H28: 10.73% | I28: 11.70% | J28: 11.87% | K28: 11.05% | L28: 9.43% | M28: 7.54% | N28: 5.56% | O28: 3.80% | P28: 2.42% | Q28: 1.42% | R28: 0.76% | S28: 0.37% | T28: 0.16% | U28: 0.06% | V28: 0.02% | W28: 0.00% | X28: 0.00% | Y28: 0.00% | Z28: 0.00%
A29: 8 | B29: 0.20% | C29: 0.59% | D29: 1.37% | E29: 2.76% | F29: 4.47% | G29: 6.52% | H29: 8.60% | I29: 10.16% | J29: 11.13% | K29: 11.24% | L29: 10.49% | M29: 9.16% | N29: 7.45% | O29: 5.65% | P29: 4.02% | Q29: 2.67% | R29: 1.65% | S29: 0.96% | T29: 0.51% | U29: 0.25% | V29: 0.11% | W29: 0.04% | X29: 0.01% | Y29: 0.00% | Z29: 0.00%

Sheet Nahkampf
A1: Schaden ohne Reroll
A2: Würfel | B2: 0 | C2: 1 | D2: 2 | E2: 3 | F2: 4 | G2: 5 | H2: 6 | I2: 7 | J2: 8 | K2: 9 | L2: 10 | M2: 11 | N2: 12 | O2: 13 | P2: 14 | Q2: 15 | R2: 16 | S2: 17 | T2: 18 | U2: 19 | V2: 20 | W2: 21 | X2: 22 | Y2: 23 | Z2: 24
A3: 1 | B3: 16.67% | C3: 66.67% | D3: 16.67% | E3: 0.00% | F3: 0.00% | G3: 0.00% | H3: 0.00% | I3: 0.00% | J3: 0.00% | K3: 0.00% | L3: 0.00% | M3: 0.00% | N3: 0.00% | O3: 0.00% | P3: 0.00% | Q3: 0.00% | R3: 0.00% | S3: 0.00% | T3: 0.00% | U3: 0.00% | V3: 0.00% | W3: 0.00% | X3: 0.00% | Y3: 0.00% | Z3: 0.00%
A4: 2 | B4: 2.78% | C4: 22.22% | D4: 50.00% | E4: 22.22% | F4: 2.78% | G4: 0.00% | H4: 0.00% | I4: 0.00% | J4: 0.00% | K4: 0.00% | L4: 0.00% | M4: 0.00% | N4: 0.00% | O4: 0.00% | P4: 0.00% | Q4: 0.00% | R4: 0.00% | S4: 0.00% | T4: 0.00% | U4: 0.00% | V4: 0.00% | W4: 0.00% | X4: 0.00% | Y4: 0.00% | Z4: 0.00%
A5: 3 | B5: 0.46% | C5: 5.56% | D5: 23.61% | E5: 40.74% | F5: 23.61% | G5: 5.56% | H5: 0.46% | I5: 0.00% | J5: 0.00% | K5: 0.00% | L5: 0.00% | M5: 0.00% | N5: 0.00% | O5: 0.00% | P5: 0.00% | Q5: 0.00% | R5: 0.00% | S5: 0.00% | T5: 0.00% | U5: 0.00% | V5: 0.00% | W5: 0.00% | X5: 0.00% | Y5: 0.00% | Z5: 0.00%
A6: 4 | B6: 0.08% | C6: 1.23% | D6: 7.72% | E6: 23.46% | F6: 35.03% | G6: 23.46% | H6: 7.72% | I6: 1.23% | J6: 0.08% | K6: 0.00% | L6: 0.00% | M6: 0.00% | N6: 0.00% | O6: 0.00% | P6: 0.00% | Q6: 0.00% | R6: 0.00% | S6: 0.00% | T6: 0.00% | U6: 0.00% | V6: 0.00% | W6: 0.00% | X6: 0.00% | Y6: 0.00% | Z6: 0.00%
A7: 5 | B7: 0.01% | C7: 0.26% | D7: 2.12% | E7: 9.26% | F7: 22.76% | G7: 31.17% | H7: 22.76% | I7: 9.26% | J7: 2.12% | K7: 0.26% | L7: 0.01% | M7: 0.00% | N7: 0.00% | O7: 0.00% | P7: 0.00% | Q7: 0.00% | R7: 0.00% | S7: 0.00% | T7: 0.00% | U7: 0.00% | V7: 0.00% | W7: 0.00% | X7: 0.00% | Y7: 0.00% | Z7: 0.00%
A8: 6 | B8: 0.00% | C8: 0.05% | D8: 0.53% | E8: 3.00% | F8: 10.32% | G8: 21.91% | H8: 28.37% | I8: 21.91% | J8: 10.32% | K8: 3.00% | L8: 0.53% | M8: 0.05% | N8: 0.00% | O8: 0.00% | P8: 0.00% | Q8: 0.00% | R8: 0.00% | S8: 0.00% | T8: 0.00% | U8: 0.00% | V8: 0.00% | W8: 0.00% | X8: 0.00% | Y8: 0.00% | Z8: 0.00%
A9: 7 | B9: 0.00% | C9: 0.01% | D9: 0.12% | E9: 0.86% | F9: 3.81% | G9: 11.03% | H9: 21.06% | I9: 26.22% | J9: 21.06% | K9: 11.03% | L9: 3.81% | M9: 0.86% | N9: 0.12% | O9: 0.01% | P9: 0.00% | Q9: 0.00% | R9: 0.00% | S9: 0.00% | T9: 0.00% | U9: 0.00% | V9: 0.00% | W9: 0.00% | X9: 0.00% | Y9: 0.00% | Z9: 0.00%
A10: 8 | B10: 0.00% | C10: 0.00% | D10: 0.03% | E10: 0.23% | F10: 1.23% | G10: 4.52% | H10: 11.50% | I10: 20.25% | J10: 24.50% | K10: 20.25% | L10: 11.50% | M10: 4.52% | N10: 1.23% | O10: 0.23% | P10: 0.03% | Q10: 0.00% | R10: 0.00% | S10: 0.00% | T10: 0.00% | U10: 0.00% | V10: 0.00% | W10: 0.00% | X10: 0.00% | Y10: 0.00% | Z10: 0.00%
A12: Schaden mit Reroll
A13: Würfel | B13: 0 | C13: 1 | D13: 2 | E13: 3 | F13: 4 | G13: 5 | H13: 6 | I13: 7 | J13: 8 | K13: 9 | L13: 10 | M13: 11 | N13: 12 | O13: 13 | P13: 14 | Q13: 15 | R13: 16 | S13: 17 | T13: 18 | U13: 19 | V13: 20 | W13: 21 | X13: 22 | Y13: 23 | Z13: 24 | AA13: Erwartungswert
A14: 1 | B14: 2.78% | C14: 66.67% | D14: 30.56% | E14: 0.00% | F14: 0.00% | G14: 0.00% | H14: 0.00% | I14: 0.00% | J14: 0.00% | K14: 0.00% | L14: 0.00% | M14: 0.00% | N14: 0.00% | O14: 0.00% | P14: 0.00% | Q14: 0.00% | R14: 0.00% | S14: 0.00% | T14: 0.00% | U14: 0.00% | V14: 0.00% | W14: 0.00% | X14: 0.00% | Y14: 0.00% | Z14: 0.00% | AA14: =SUMPRODUCT(B$2:Z$2,B14:Z14) -> 1.277777778
A15: 2 | B15: 0.46% | C15: 5.56% | D15: 53.24% | E15: 33.33% | F15: 7.41% | G15: 0.00% | H15: 0.00% | I15: 0.00% | J15: 0.00% | K15: 0.00% | L15: 0.00% | M15: 0.00% | N15: 0.00% | O15: 0.00% | P15: 0.00% | Q15: 0.00% | R15: 0.00% | S15: 0.00% | T15: 0.00% | U15: 0.00% | V15: 0.00% | W15: 0.00% | X15: 0.00% | Y15: 0.00% | Z15: 0.00% | AA15: =SUMPRODUCT(B$2:Z$2,B15:Z15) -> 2.416666667
A16: 3 | B16: 0.08% | C16: 1.23% | D16: 7.72% | E16: 43.21% | F16: 35.03% | G16: 11.11% | H16: 1.62% | I16: 0.00% | J16: 0.00% | K16: 0.00% | L16: 0.00% | M16: 0.00% | N16: 0.00% | O16: 0.00% | P16: 0.00% | Q16: 0.00% | R16: 0.00% | S16: 0.00% | T16: 0.00% | U16: 0.00% | V16: 0.00% | W16: 0.00% | X16: 0.00% | Y16: 0.00% | Z16: 0.00% | AA16: 3.516975309
A17: 4 | B17: 0.01% | C17: 0.26% | D17: 2.12% | E17: 9.26% | F17: 35.93% | G17: 34.47% | H17: 14.53% | I17: 3.09% | J17: 0.33% | K17: 0.00% | L17: 0.00% | M17: 0.00% | N17: 0.00% | O17: 0.00% | P17: 0.00% | Q17: 0.00% | R17: 0.00% | S17: 0.00% | T17: 0.00% | U17: 0.00% | V17: 0.00% | W17: 0.00% | X17: 0.00% | Y17: 0.00% | Z17: 0.00% | AA17: 4.597993827
A18: 5 | B18: 0.00% | C18: 0.05% | D18: 0.53% | E18: 3.00% | F18: 10.32% | G18: 30.69% | H18: 32.76% | I18: 16.98% | J18: 4.83% | K18: 0.77% | L18: 0.07% | M18: 0.00% | N18: 0.00% | O18: 0.00% | P18: 0.00% | Q18: 0.00% | R18: 0.00% | S18: 0.00% | T18: 0.00% | U18: 0.00% | V18: 0.00% | W18: 0.00% | X18: 0.00% | Y18: 0.00% | Z18: 0.00% | AA18: 5.66508059
A19: 6 | B19: 0.00% | C19: 0.01% | D19: 0.12% | E19: 0.86% | F19: 3.81% | G19: 11.03% | H19: 26.91% | I19: 30.61% | J19: 18.50% | K19: 6.55% | L19: 1.41% | M19: 0.18% | N19: 0.01% | O19: 0.00% | P19: 0.00% | Q19: 0.00% | R19: 0.00% | S19: 0.00% | T19: 0.00% | U19: 0.00% | V19: 0.00% | W19: 0.00% | X19: 0.00% | Y19: 0.00% | Z19: 0.00% | AA19: 6.720914781
A20: 7 | B20: 0.00% | C20: 0.00% | D20: 0.03% | E20: 0.23% | F20: 1.23% | G20: 4.52% | H20: 11.50% | I20: 24.15% | J20: 28.40% | K20: 19.27% | L20: 8.09% | M20: 2.17% | N20: 0.38% | O20: 0.04% | P20: 0.00% | Q20: 0.00% | R20: 0.00% | S20: 0.00% | T20: 0.00% | U20: 0.00% | V20: 0.00% | W20: 0.00% | X20: 0.00% | Y20: 0.00% | Z20: 0.00% | AA20: 7.767431365
A21: 8 | B21: 0.00% | C21: 0.00% | D21: 0.01% | E21: 0.06% | F21: 0.36% | G21: 1.61% | H21: 5.14% | I21: 11.79% | J21: 22.10% | K21: 26.33% | L21: 19.50% | M21: 9.36% | N21: 3.00% | O21: 0.65% | P21: 0.09% | Q21: 0.01% | R21: 0.00% | S21: 0.00% | T21: 0.00% | U21: 0.00% | V21: 0.00% | W21: 0.00% | X21: 0.00% | Y21: 0.00% | Z21: 0.00% | AA21: 8.806193201

Sheet Fernkampf
A1: Schaden ohne Reroll
A2: Würfel | B2: 0 | C2: 1 | D2: 2 | E2: 3 | F2: 4 | G2: 5 | H2: 6 | I2: 7 | J2: 8 | K2: 9 | L2: 10 | M2: 11 | N2: 12 | O2: 13 | P2: 14 | Q2: 15 | R2: 16 | S2: 17 | T2: 18 | U2: 19 | V2: 20 | W2: 21 | X2: 22 | Y2: 23 | Z2: 24
A3: 1 | B3: 33.33% | C3: 33.33% | D3: 33.33% | E3: 0.00% | F3: 0.00% | G3: 0.00% | H3: 0.00% | I3: 0.00% | J3: 0.00% | K3: 0.00% | L3: 0.00% | M3: 0.00% | N3: 0.00% | O3: 0.00% | P3: 0.00% | Q3: 0.00% | R3: 0.00% | S3: 0.00% | T3: 0.00% | U3: 0.00% | V3: 0.00% | W3: 0.00% | X3: 0.00% | Y3: 0.00% | Z3: 0.00%
A4: 2 | B4: 11.11% | C4: 22.22% | D4: 33.33% | E4: 22.22% | F4: 11.11% | G4: 0.00% | H4: 0.00% | I4: 0.00% | J4: 0.00% | K4: 0.00% | L4: 0.00% | M4: 0.00% | N4: 0.00% | O4: 0.00% | P4: 0.00% | Q4: 0.00% | R4: 0.00% | S4: 0.00% | T4: 0.00% | U4: 0.00% | V4: 0.00% | W4: 0.00% | X4: 0.00% | Y4: 0.00% | Z4: 0.00%
A5: 3 | B5: 3.70% | C5: 11.11% | D5: 22.22% | E5: 25.93% | F5: 22.22% | G5: 11.11% | H5: 3.70% | I5: 0.00% | J5: 0.00% | K5: 0.00% | L5: 0.00% | M5: 0.00% | N5: 0.00% | O5: 0.00% | P5: 0.00% | Q5: 0.00% | R5: 0.00% | S5: 0.00% | T5: 0.00% | U5: 0.00% | V5: 0.00% | W5: 0.00% | X5: 0.00% | Y5: 0.00% | Z5: 0.00%
A6: 4 | B6: 1.23% | C6: 4.94% | D6: 12.35% | E6: 19.75% | F6: 23.46% | G6: 19.75% | H6: 12.35% | I6: 4.94% | J6: 1.23% | K6: 0.00% | L6: 0.00% | M6: 0.00% | N6: 0.00% | O6: 0.00% | P6: 0.00% | Q6: 0.00% | R6: 0.00% | S6: 0.00% | T6: 0.00% | U6: 0.00% | V6: 0.00% | W6: 0.00% | X6: 0.00% | Y6: 0.00% | Z6: 0.00%
A7: 5 | B7: 0.41% | C7: 2.06% | D7: 6.17% | E7: 12.35% | F7: 18.52% | G7: 20.99% | H7: 18.52% | I7: 12.35% | J7: 6.17% | K7: 2.06% | L7: 0.41% | M7: 0.00% | N7: 0.00% | O7: 0.00% | P7: 0.00% | Q7: 0.00% | R7: 0.00% | S7: 0.00% | T7: 0.00% | U7: 0.00% | V7: 0.00% | W7: 0.00% | X7: 0.00% | Y7: 0.00% | Z7: 0.00%
A8: 6 | B8: 0.14% | C8: 0.82% | D8: 2.88% | E8: 6.86% | F8: 12.35% | G8: 17.28% | H8: 19.34% | I8: 17.28% | J8: 12.35% | K8: 6.86% | L8: 2.88% | M8: 0.82% | N8: 0.14% | O8: 0.00% | P8: 0.00% | Q8: 0.00% | R8: 0.00% | S8: 0.00% | T8: 0.00% | U8: 0.00% | V8: 0.00% | W8: 0.00% | X8: 0.00% | Y8: 0.00% | Z8: 0.00%
A9: 7 | B9: 0.05% | C9: 0.32% | D9: 1.28% | E9: 3.52% | F9: 7.36% | G9: 12.16% | H9: 16.32% | I9: 17.97% | J9: 16.32% | K9: 12.16% | L9: 7.36% | M9: 3.52% | N9: 1.28% | O9: 0.32% | P9: 0.05% | Q9: 0.00% | R9: 0.00% | S9: 0.00% | T9: 0.00% | U9: 0.00% | V9: 0.00% | W9: 0.00% | X9: 0.00% | Y9: 0.00% | Z9: 0.00%
A10: 8 | B10: 0.02% | C10: 0.12% | D10: 0.55% | E10: 1.71% | F10: 4.05% | G10: 7.68% | H10: 11.95% | I10: 15.49% | J10: 16.87% | K10: 15.49% | L10: 11.95% | M10: 7.68% | N10: 4.05% | O10: 1.71% | P10: 0.55% | Q10: 0.12% | R10: 0.02% | S10: 0.00% | T10: 0.00% | U10: 0.00% | V10: 0.00% | W10: 0.00% | X10: 0.00% | Y10: 0.00% | Z10: 0.00%
A12: Schaden mit Reroll
A13: Würfel | B13: 0 | C13: 1 | D13: 2 | E13: 3 | F13: 4 | G13: 5 | H13: 6 | I13: 7 | J13: 8 | K13: 9 | L13: 10 | M13: 11 | N13: 12 | O13: 13 | P13: 14 | Q13: 15 | R13: 16 | S13: 17 | T13: 18 | U13: 19 | V13: 20 | W13: 21 | X13: 22 | Y13: 23 | Z13: 24 | AA13: Erwartungswert
A14: 1 | B14: 11.11% | C14: 33.33% | D14: 55.56% | E14: 0.00% | F14: 0.00% | G14: 0.00% | H14: 0.00% | I14: 0.00% | J14: 0.00% | K14: 0.00% | L14: 0.00% | M14: 0.00% | N14: 0.00% | O14: 0.00% | P14: 0.00% | Q14: 0.00% | R14: 0.00% | S14: 0.00% | T14: 0.00% | U14: 0.00% | V14: 0.00% | W14: 0.00% | X14: 0.00% | Y14: 0.00% | Z14: 0.00% | AA14: =SUMPRODUCT(B$2:Z$2,B14:Z14) -> 1.444444444
A15: 2 | B15: 3.70% | C15: 11.11% | D15: 25.93% | E15: 33.33% | F15: 25.93% | G15: 0.00% | H15: 0.00% | I15: 0.00% | J15: 0.00% | K15: 0.00% | L15: 0.00% | M15: 0.00% | N15: 0.00% | O15: 0.00% | P15: 0.00% | Q15: 0.00% | R15: 0.00% | S15: 0.00% | T15: 0.00% | U15: 0.00% | V15: 0.00% | W15: 0.00% | X15: 0.00% | Y15: 0.00% | Z15: 0.00% | AA15: =SUMPRODUCT(B$2:Z$2,B15:Z15) -> 2.666666667
A16: 3 | B16: 1.23% | C16: 4.94% | D16: 12.35% | E16: 20.99% | F16: 27.16% | G16: 22.22% | H16: 11.11% | I16: 0.00% | J16: 0.00% | K16: 0.00% | L16: 0.00% | M16: 0.00% | N16: 0.00% | O16: 0.00% | P16: 0.00% | Q16: 0.00% | R16: 0.00% | S16: 0.00% | T16: 0.00% | U16: 0.00% | V16: 0.00% | W16: 0.00% | X16: 0.00% | Y16: 0.00% | Z16: 0.00% | AA16: 3.790123457
A17: 4 | B17: 0.41% | C17: 2.06% | D17: 6.17% | E17: 12.35% | F17: 18.93% | G17: 22.63% | H17: 20.58% | I17: 12.35% | J17: 4.53% | K17: 0.00% | L17: 0.00% | M17: 0.00% | N17: 0.00% | O17: 0.00% | P17: 0.00% | Q17: 0.00% | R17: 0.00% | S17: 0.00% | T17: 0.00% | U17: 0.00% | V17: 0.00% | W17: 0.00% | X17: 0.00% | Y17: 0.00% | Z17: 0.00% | AA17: 4.864197531
A18: 5 | B18: 0.14% | C18: 0.82% | D18: 2.88% | E18: 6.86% | F18: 12.35% | G18: 17.42% | H18: 20.03% | I18: 18.52% | J18: 13.03% | K18: 6.17% | L18: 1.78% | M18: 0.00% | N18: 0.00% | O18: 0.00% | P18: 0.00% | Q18: 0.00% | R18: 0.00% | S18: 0.00% | T18: 0.00% | U18: 0.00% | V18: 0.00% | W18: 0.00% | X18: 0.00% | Y18: 0.00% | Z18: 0.00% | AA18: 5.910836763
A19: 6 | B19: 0.05% | C19: 0.32% | D19: 1.28% | E19: 3.52% | F19: 7.36% | G19: 12.16% | H19: 16.37% | I19: 18.24% | J19: 16.96% | K19: 12.80% | L19: 7.36% | M19: 2.88% | N19: 0.69% | O19: 0.00% | P19: 0.00% | Q19: 0.00% | R19: 0.00% | S19: 0.00% | T19: 0.00% | U19: 0.00% | V19: 0.00% | W19: 0.00% | X19: 0.00% | Y19: 0.00% | Z19: 0.00% | AA19: 6.941015089
A20: 7 | B20: 0.02% | C20: 0.12% | D20: 0.55% | E20: 1.71% | F20: 4.05% | G20: 7.68% | H20: 11.95% | I20: 15.50% | J20: 16.98% | K20: 15.79% | L20: 12.38% | M20: 7.90% | N20: 3.84% | O20: 1.28% | P20: 0.26% | Q20: 0.00% | R20: 0.00% | S20: 0.00% | T20: 0.00% | U20: 0.00% | V20: 0.00% | W20: 0.00% | X20: 0.00% | Y20: 0.00% | Z20: 0.00% | AA20: 7.960829142
A21: 8 | B21: 0.01% | C21: 0.05% | D21: 0.23% | E21: 0.79% | F21: 2.10% | G21: 4.48% | H21: 7.90% | I21: 11.71% | J21: 14.77% | K21: 15.99% | L21: 14.91% | M21: 11.95% | N21: 8.11% | O21: 4.48% | P21: 1.89% | Q21: 0.55% | R21: 0.10% | S21: 0.00% | T21: 0.00% | U21: 0.00% | V21: 0.00% | W21: 0.00% | X21: 0.00% | Y21: 0.00% | Z21: 0.00% | AA21: 8.9739369

Sheet Explosion
A1: Schaden ohne Reroll
A2: Würfel | B2: 0 | C2: 1 | D2: 2 | E2: 3 | F2: 4 | G2: 5 | H2: 6 | I2: 7 | J2: 8 | K2: 9 | L2: 10 | M2: 11 | N2: 12 | O2: 13 | P2: 14 | Q2: 15 | R2: 16 | S2: 17 | T2: 18 | U2: 19 | V2: 20 | W2: 21 | X2: 22 | Y2: 23 | Z2: 24
A3: 1 | B3: 50.00% | C3: 16.67% | D3: 16.67% | E3: 16.67% | F3: 0.00% | G3: 0.00% | H3: 0.00% | I3: 0.00% | J3: 0.00% | K3: 0.00% | L3: 0.00% | M3: 0.00% | N3: 0.00% | O3: 0.00% | P3: 0.00% | Q3: 0.00% | R3: 0.00% | S3: 0.00% | T3: 0.00% | U3: 0.00% | V3: 0.00% | W3: 0.00% | X3: 0.00% | Y3: 0.00% | Z3: 0.00%
A4: 2 | B4: 25.00% | C4: 16.67% | D4: 19.44% | E4: 22.22% | F4: 8.33% | G4: 5.56% | H4: 2.78% | I4: 0.00% | J4: 0.00% | K4: 0.00% | L4: 0.00% | M4: 0.00% | N4: 0.00% | O4: 0.00% | P4: 0.00% | Q4: 0.00% | R4: 0.00% | S4: 0.00% | T4: 0.00% | U4: 0.00% | V4: 0.00% | W4: 0.00% | X4: 0.00% | Y4: 0.00% | Z4: 0.00%
A5: 3 | B5: 12.50% | C5: 12.50% | D5: 16.67% | E5: 21.30% | F5: 13.89% | G5: 11.11% | H5: 7.41% | I5: 2.78% | J5: 1.39% | K5: 0.46% | L5: 0.00% | M5: 0.00% | N5: 0.00% | O5: 0.00% | P5: 0.00% | Q5: 0.00% | R5: 0.00% | S5: 0.00% | T5: 0.00% | U5: 0.00% | V5: 0.00% | W5: 0.00% | X5: 0.00% | Y5: 0.00% | Z5: 0.00%
A6: 4 | B6: 6.25% | C6: 8.33% | D6: 12.50% | E6: 17.59% | F6: 15.35% | G6: 14.20% | H6: 11.42% | I6: 6.79% | J6: 4.24% | K6: 2.16% | L6: 0.77% | M6: 0.31% | N6: 0.08% | O6: 0.00% | P6: 0.00% | Q6: 0.00% | R6: 0.00% | S6: 0.00% | T6: 0.00% | U6: 0.00% | V6: 0.00% | W6: 0.00% | X6: 0.00% | Y6: 0.00% | Z6: 0.00%
A7: 5 | B7: 3.13% | C7: 5.21% | D7: 8.68% | E7: 13.31% | F7: 14.08% | G7: 14.67% | H7: 13.57% | I7: 10.22% | J7: 7.52% | K7: 4.82% | L7: 2.58% | M7: 1.35% | N7: 0.58% | O7: 0.19% | P7: 0.06% | Q7: 0.01% | R7: 0.00% | S7: 0.00% | T7: 0.00% | U7: 0.00% | V7: 0.00% | W7: 0.00% | X7: 0.00% | Y7: 0.00% | Z7: 0.00%
A8: 6 | B8: 1.56% | C8: 3.13% | D8: 5.73% | E8: 9.49% | F8: 11.57% | G8: 13.35% | H8: 13.79% | I8: 12.17% | J8: 10.17% | K8: 7.63% | L8: 5.05% | M8: 3.16% | N8: 1.75% | O8: 0.85% | P8: 0.39% | Q8: 0.15% | R8: 0.05% | S8: 0.01% | T8: 0.00% | U8: 0.00% | V8: 0.00% | W8: 0.00% | X8: 0.00% | Y8: 0.00% | Z8: 0.00%
A9: 7 | B9: 0.78% | C9: 1.82% | D9: 3.65% | E9: 6.48% | F9: 8.84% | G9: 11.14% | H9: 12.63% | I9: 12.54% | J9: 11.64% | K9: 9.84% | L9: 7.52% | M9: 5.39% | N9: 3.52% | O9: 2.09% | P9: 1.15% | Q9: 0.57% | R9: 0.25% | S9: 0.10% | T9: 0.04% | U9: 0.01% | V9: 0.00% | W9: 0.00% | X9: 0.00% | Y9: 0.00% | Z9: 0.00%
A10: 8 | B10: 0.39% | C10: 1.04% | D10: 2.26% | E10: 4.28% | F10: 6.41% | G10: 8.73% | H10: 10.73% | I10: 11.70% | J10: 11.87% | K10: 11.05% | L10: 9.43% | M10: 7.53% | N10: 5.55% | O10: 3.78% | P10: 2.41% | Q10: 1.41% | R10: 0.76% | S10: 0.38% | T10: 0.17% | U10: 0.07% | V10: 0.03% | W10: 0.01% | X10: 0.00% | Y10: 0.00% | Z10: 0.00%
A12: Schaden mit Reroll
A13: Würfel | B13: 0 | C13: 1 | D13: 2 | E13: 3 | F13: 4 | G13: 5 | H13: 6 | I13: 7 | J13: 8 | K13: 9 | L13: 10 | M13: 11 | N13: 12 | O13: 13 | P13: 14 | Q13: 15 | R13: 16 | S13: 17 | T13: 18 | U13: 19 | V13: 20 | W13: 21 | X13: 22 | Y13: 23 | Z13: 24 | AA13: Erwartungswert
A14: 1 | B14: 25.00% | C14: 19.44% | D14: 25.00% | E14: 30.56% | F14: 0.00% | G14: 0.00% | H14: 0.00% | I14: 0.00% | J14: 0.00% | K14: 0.00% | L14: 0.00% | M14: 0.00% | N14: 0.00% | O14: 0.00% | P14: 0.00% | Q14: 0.00% | R14: 0.00% | S14: 0.00% | T14: 0.00% | U14: 0.00% | V14: 0.00% | W14: 0.00% | X14: 0.00% | Y14: 0.00% | Z14: 0.00% | AA14: =SUMPRODUCT(B$2:Z$2,B14:Z14) -> 1.611111111
A15: 2 | B15: 12.50% | C15: 12.50% | D15: 17.13% | E15: 22.22% | F15: 15.74% | G15: 12.50% | H15: 7.41% | I15: 0.00% | J15: 0.00% | K15: 0.00% | L15: 0.00% | M15: 0.00% | N15: 0.00% | O15: 0.00% | P15: 0.00% | Q15: 0.00% | R15: 0.00% | S15: 0.00% | T15: 0.00% | U15: 0.00% | V15: 0.00% | W15: 0.00% | X15: 0.00% | Y15: 0.00% | Z15: 0.00% | AA15: =SUMPRODUCT(B$2:Z$2,B15:Z15) -> 2.833333333
A16: 3 | B16: 6.25% | C16: 8.33% | D16: 12.50% | E16: 17.67% | F16: 15.59% | G16: 14.66% | H16: 11.96% | I16: 7.25% | J16: 4.17% | K16: 1.62% | L16: 0.00% | M16: 0.00% | N16: 0.00% | O16: 0.00% | P16: 0.00% | Q16: 0.00% | R16: 0.00% | S16: 0.00% | T16: 0.00% | U16: 0.00% | V16: 0.00% | W16: 0.00% | X16: 0.00% | Y16: 0.00% | Z16: 0.00% | AA16: 3.924382716
A17: 4 | B17: 3.13% | C17: 5.21% | D17: 8.68% | E17: 13.31% | F17: 14.09% | G17: 14.72% | H17: 13.70% | I17: 10.42% | J17: 7.73% | K17: 4.95% | L17: 2.57% | M17: 1.16% | N17: 0.33% | O17: 0.00% | P17: 0.00% | Q17: 0.00% | R17: 0.00% | S17: 0.00% | T17: 0.00% | U17: 0.00% | V17: 0.00% | W17: 0.00% | X17: 0.00% | Y17: 0.00% | Z17: 0.00% | AA17: 4.964506173
A18: 5 | B18: 1.56% | C18: 3.13% | D18: 5.73% | E18: 9.49% | F18: 11.57% | G18: 13.35% | H18: 13.81% | I18: 12.20% | J18: 10.23% | K18: 7.72% | L18: 5.13% | M18: 3.21% | N18: 1.74% | O18: 0.78% | P18: 0.29% | Q18: 0.07% | R18: 0.00% | S18: 0.00% | T18: 0.00% | U18: 0.00% | V18: 0.00% | W18: 0.00% | X18: 0.00% | Y18: 0.00% | Z18: 0.00% | AA18: 5.982981824
A19: 6 | B19: 0.78% | C19: 1.82% | D19: 3.65% | E19: 6.48% | F19: 8.84% | G19: 11.14% | H19: 12.63% | I19: 12.54% | J19: 11.65% | K19: 9.85% | L19: 7.55% | M19: 5.43% | N19: 3.55% | O19: 2.10% | P19: 1.15% | Q19: 0.54% | R19: 0.22% | S19: 0.07% | T19: 0.01% | U19: 0.00% | V19: 0.00% | W19: 0.00% | X19: 0.00% | Y19: 0.00% | Z19: 0.00% | AA19: 6.99172668
A20: 7 | B20: 0.39% | C20: 1.04% | D20: 2.26% | E20: 4.28% | F20: 6.41% | G20: 8.73% | H20: 10.73% | I20: 11.70% | J20: 11.87% | K20: 11.05% | L20: 9.43% | M20: 7.54% | N20: 5.56% | O20: 3.80% | P20: 2.42% | Q20: 1.42% | R20: 0.76% | S20: 0.37% | T20: 0.16% | U20: 0.06% | V20: 0.02% | W20: 0.00% | X20: 0.00% | Y20: 0.00% | Z20: 0.00% | AA20: 7.995940739
A21: 8 | B21: 0.20% | C21: 0.59% | D21: 1.37% | E21: 2.76% | F21: 4.47% | G21: 6.52% | H21: 8.60% | I21: 10.16% | J21: 11.13% | K21: 11.24% | L21: 10.49% | M21: 9.16% | N21: 7.45% | O21: 5.65% | P21: 4.02% | Q21: 2.67% | R21: 1.65% | S21: 0.96% | T21: 0.51% | U21: 0.25% | V21: 0.11% | W21: 0.04% | X21: 0.01% | Y21: 0.00% | Z21: 0.00% | AA21: 8.997995971

Sheet Nahkampf Mindestens
A1: Schaden ohne Reroll
A2: Würfel | B2: 1 | C2: 2 | D2: 3 | E2: 4 | F2: 5 | G2: 6 | H2: 7 | I2: 8 | J2: 9 | K2: 10 | L2: 11 | M2: 12 | N2: 13 | O2: 14 | P2: 15 | Q2: 16 | R2: 17 | S2: 18 | T2: 19 | U2: 20 | V2: 21 | W2: 22 | X2: 23 | Y2: 24
A3: 1 | B3: =SUM(Nahkampf!C3:$Z3) -> 83.33% | C3: =SUM(Nahkampf!D3:$Z3) -> 16.67% | D3: =SUM(Nahkampf!E3:$Z3) -> 0.00% | E3: =SUM(Nahkampf!F3:$Z3) -> 0.00% | F3: =SUM(Nahkampf!G3:$Z3) -> 0.00% | G3: =SUM(Nahkampf!H3:$Z3) -> 0.00% | H3: =SUM(Nahkampf!I3:$Z3) -> 0.00% | I3: =SUM(Nahkampf!J3:$Z3) -> 0.00% | J3: =SUM(Nahkampf!K3:$Z3) -> 0.00% | K3: =SUM(Nahkampf!L3:$Z3) -> 0.00% | L3: =SUM(Nahkampf!M3:$Z3) -> 0.00% | M3: =SUM(Nahkampf!N3:$Z3) -> 0.00% | N3: =SUM(Nahkampf!O3:$Z3) -> 0.00% | O3: =SUM(Nahkampf!P3:$Z3) -> 0.00% | P3: =SUM(Nahkampf!Q3:$Z3) -> 0.00% | Q3: =SUM(Nahkampf!R3:$Z3) -> 0.00% | R3: =SUM(Nahkampf!S3:$Z3) -> 0.00% | S3: =SUM(Nahkampf!T3:$Z3) -> 0.00% | T3: =SUM(Nahkampf!U3:$Z3) -> 0.00% | U3: =SUM(Nahkampf!V3:$Z3) -> 0.00% | V3: =SUM(Nahkampf!W3:$Z3) -> 0.00% | W3: =SUM(Nahkampf!X3:$Z3) -> 0.00% | X3: =SUM(Nahkampf!Y3:$Z3) -> 0.00% | Y3: =SUM(Nahkampf!Z3:$Z3) -> 0.00%
A4: 2 | B4: =SUM(Nahkampf!C4:$Z4) -> 97.22% | C4: =SUM(Nahkampf!D4:$Z4) -> 75.00% | D4: =SUM(Nahkampf!E4:$Z4) -> 25.00% | E4: =SUM(Nahkampf!F4:$Z4) -> 2.78% | F4: =SUM(Nahkampf!G4:$Z4) -> 0.00% | G4: =SUM(Nahkampf!H4:$Z4) -> 0.00% | H4: =SUM(Nahkampf!I4:$Z4) -> 0.00% | I4: =SUM(Nahkampf!J4:$Z4) -> 0.00% | J4: =SUM(Nahkampf!K4:$Z4) -> 0.00% | K4: =SUM(Nahkampf!L4:$Z4) -> 0.00% | L4: =SUM(Nahkampf!M4:$Z4) -> 0.00% | M4: =SUM(Nahkampf!N4:$Z4) -> 0.00% | N4: =SUM(Nahkampf!O4:$Z4) -> 0.00% | O4: =SUM(Nahkampf!P4:$Z4) -> 0.00% | P4: =SUM(Nahkampf!Q4:$Z4) -> 0.00% | Q4: =SUM(Nahkampf!R4:$Z4) -> 0.00% | R4: =SUM(Nahkampf!S4:$Z4) -> 0.00% | S4: =SUM(Nahkampf!T4:$Z4) -> 0.00% | T4: =SUM(Nahkampf!U4:$Z4) -> 0.00% | U4: =SUM(Nahkampf!V4:$Z4) -> 0.00% | V4: =SUM(Nahkampf!W4:$Z4) -> 0.00% | W4: =SUM(Nahkampf!X4:$Z4) -> 0.00% | X4: =SUM(Nahkampf!Y4:$Z4) -> 0.00% | Y4: =SUM(Nahkampf!Z4:$Z4) -> 0.00%
A5: 3 | B5: =SUM(Nahkampf!C5:$Z5) -> 99.54% | C5: =SUM(Nahkampf!D5:$Z5) -> 93.98% | D5: =SUM(Nahkampf!E5:$Z5) -> 70.37% | E5: =SUM(Nahkampf!F5:$Z5) -> 29.63% | F5: =SUM(Nahkampf!G5:$Z5) -> 6.02% | G5: =SUM(Nahkampf!H5:$Z5) -> 0.46% | H5: =SUM(Nahkampf!I5:$Z5) -> 0.00% | I5: =SUM(Nahkampf!J5:$Z5) -> 0.00% | J5: =SUM(Nahkampf!K5:$Z5) -> 0.00% | K5: =SUM(Nahkampf!L5:$Z5) -> 0.00% | L5: =SUM(Nahkampf!M5:$Z5) -> 0.00% | M5: =SUM(Nahkampf!N5:$Z5) -> 0.00% | N5: =SUM(Nahkampf!O5:$Z5) -> 0.00% | O5: =SUM(Nahkampf!P5:$Z5) -> 0.00% | P5: =SUM(Nahkampf!Q5:$Z5) -> 0.00% | Q5: =SUM(Nahkampf!R5:$Z5) -> 0.00% | R5: =SUM(Nahkampf!S5:$Z5) -> 0.00% | S5: =SUM(Nahkampf!T5:$Z5) -> 0.00% | T5: =SUM(Nahkampf!U5:$Z5) -> 0.00% | U5: =SUM(Nahkampf!V5:$Z5) -> 0.00% | V5: =SUM(Nahkampf!W5:$Z5) -> 0.00% | W5: =SUM(Nahkampf!X5:$Z5) -> 0.00% | X5: =SUM(Nahkampf!Y5:$Z5) -> 0.00% | Y5: =SUM(Nahkampf!Z5:$Z5) -> 0.00%
A6: 4 | B6: =SUM(Nahkampf!C6:$Z6) -> 99.92% | C6: =SUM(Nahkampf!D6:$Z6) -> 98.69% | D6: =SUM(Nahkampf!E6:$Z6) -> 90.97% | E6: =SUM(Nahkampf!F6:$Z6) -> 67.52% | F6: =SUM(Nahkampf!G6:$Z6) -> 32.48% | G6: =SUM(Nahkampf!H6:$Z6) -> 9.03% | H6: =SUM(Nahkampf!I6:$Z6) -> 1.31% | I6: =SUM(Nahkampf!J6:$Z6) -> 0.08% | J6: =SUM(Nahkampf!K6:$Z6) -> 0.00% | K6: =SUM(Nahkampf!L6:$Z6) -> 0.00% | L6: =SUM(Nahkampf!M6:$Z6) -> 0.00% | M6: =SUM(Nahkampf!N6:$Z6) -> 0.00% | N6: =SUM(Nahkampf!O6:$Z6) -> 0.00% | O6: =SUM(Nahkampf!P6:$Z6) -> 0.00% | P6: =SUM(Nahkampf!Q6:$Z6) -> 0.00% | Q6: =SUM(Nahkampf!R6:$Z6) -> 0.00% | R6: =SUM(Nahkampf!S6:$Z6) -> 0.00% | S6: =SUM(Nahkampf!T6:$Z6) -> 0.00% | T6: =SUM(Nahkampf!U6:$Z6) -> 0.00% | U6: =SUM(Nahkampf!V6:$Z6) -> 0.00% | V6: =SUM(Nahkampf!W6:$Z6) -> 0.00% | W6: =SUM(Nahkampf!X6:$Z6) -> 0.00% | X6: =SUM(Nahkampf!Y6:$Z6) -> 0.00% | Y6: =SUM(Nahkampf!Z6:$Z6) -> 0.00%
A7: 5 | B7: =SUM(Nahkampf!C7:$Z7) -> 99.99% | C7: =SUM(Nahkampf!D7:$Z7) -> 99.73% | D7: =SUM(Nahkampf!E7:$Z7) -> 97.61% | E7: =SUM(Nahkampf!F7:$Z7) -> 88.35% | F7: =SUM(Nahkampf!G7:$Z7) -> 65.59% | G7: =SUM(Nahkampf!H7:$Z7) -> 34.41% | H7: =SUM(Nahkampf!I7:$Z7) -> 11.65% | I7: =SUM(Nahkampf!J7:$Z7) -> 2.39% | J7: =SUM(Nahkampf!K7:$Z7) -> 0.27% | K7: =SUM(Nahkampf!L7:$Z7) -> 0.01% | L7: =SUM(Nahkampf!M7:$Z7) -> 0.00% | M7: =SUM(Nahkampf!N7:$Z7) -> 0.00% | N7: =SUM(Nahkampf!O7:$Z7) -> 0.00% | O7: =SUM(Nahkampf!P7:$Z7) -> 0.00% | P7: =SUM(Nahkampf!Q7:$Z7) -> 0.00% | Q7: =SUM(Nahkampf!R7:$Z7) -> 0.00% | R7: =SUM(Nahkampf!S7:$Z7) -> 0.00% | S7: =SUM(Nahkampf!T7:$Z7) -> 0.00% | T7: =SUM(Nahkampf!U7:$Z7) -> 0.00% | U7: =SUM(Nahkampf!V7:$Z7) -> 0.00% | V7: =SUM(Nahkampf!W7:$Z7) -> 0.00% | W7: =SUM(Nahkampf!X7:$Z7) -> 0.00% | X7: =SUM(Nahkampf!Y7:$Z7) -> 0.00% | Y7: =SUM(Nahkampf!Z7:$Z7) -> 0.00%
A8: 6 | B8: =SUM(Nahkampf!C8:$Z8) -> 100.00% | C8: =SUM(Nahkampf!D8:$Z8) -> 99.95% | D8: =SUM(Nahkampf!E8:$Z8) -> 99.42% | E8: =SUM(Nahkampf!F8:$Z8) -> 96.42% | F8: =SUM(Nahkampf!G8:$Z8) -> 86.10% | G8: =SUM(Nahkampf!H8:$Z8) -> 64.18% | H8: =SUM(Nahkampf!I8:$Z8) -> 35.82% | I8: =SUM(Nahkampf!J8:$Z8) -> 13.90% | J8: =SUM(Nahkampf!K8:$Z8) -> 3.58% | K8: =SUM(Nahkampf!L8:$Z8) -> 0.58% | L8: =SUM(Nahkampf!M8:$Z8) -> 0.05% | M8: =SUM(Nahkampf!N8:$Z8) -> 0.00% | N8: =SUM(Nahkampf!O8:$Z8) -> 0.00% | O8: =SUM(Nahkampf!P8:$Z8) -> 0.00% | P8: =SUM(Nahkampf!Q8:$Z8) -> 0.00% | Q8: =SUM(Nahkampf!R8:$Z8) -> 0.00% | R8: =SUM(Nahkampf!S8:$Z8) -> 0.00% | S8: =SUM(Nahkampf!T8:$Z8) -> 0.00% | T8: =SUM(Nahkampf!U8:$Z8) -> 0.00% | U8: =SUM(Nahkampf!V8:$Z8) -> 0.00% | V8: =SUM(Nahkampf!W8:$Z8) -> 0.00% | W8: =SUM(Nahkampf!X8:$Z8) -> 0.00% | X8: =SUM(Nahkampf!Y8:$Z8) -> 0.00% | Y8: =SUM(Nahkampf!Z8:$Z8) -> 0.00%
A9: 7 | B9: =SUM(Nahkampf!C9:$Z9) -> 100.00% | C9: =SUM(Nahkampf!D9:$Z9) -> 99.99% | D9: =SUM(Nahkampf!E9:$Z9) -> 99.87% | E9: =SUM(Nahkampf!F9:$Z9) -> 99.01% | F9: =SUM(Nahkampf!G9:$Z9) -> 95.20% | G9: =SUM(Nahkampf!H9:$Z9) -> 84.17% | H9: =SUM(Nahkampf!I9:$Z9) -> 63.11% | I9: =SUM(Nahkampf!J9:$Z9) -> 36.89% | J9: =SUM(Nahkampf!K9:$Z9) -> 15.83% | K9: =SUM(Nahkampf!L9:$Z9) -> 4.80% | L9: =SUM(Nahkampf!M9:$Z9) -> 0.99% | M9: =SUM(Nahkampf!N9:$Z9) -> 0.13% | N9: =SUM(Nahkampf!O9:$Z9) -> 0.01% | O9: =SUM(Nahkampf!P9:$Z9) -> 0.00% | P9: =SUM(Nahkampf!Q9:$Z9) -> 0.00% | Q9: =SUM(Nahkampf!R9:$Z9) -> 0.00% | R9: =SUM(Nahkampf!S9:$Z9) -> 0.00% | S9: =SUM(Nahkampf!T9:$Z9) -> 0.00% | T9: =SUM(Nahkampf!U9:$Z9) -> 0.00% | U9: =SUM(Nahkampf!V9:$Z9) -> 0.00% | V9: =SUM(Nahkampf!W9:$Z9) -> 0.00% | W9: =SUM(Nahkampf!X9:$Z9) -> 0.00% | X9: =SUM(Nahkampf!Y9:$Z9) -> 0.00% | Y9: =SUM(Nahkampf!Z9:$Z9) -> 0.00%
A10: 8 | B10: =SUM(Nahkampf!C10:$Z10) -> 100.00% | C10: =SUM(Nahkampf!D10:$Z10) -> 100.00% | D10: =SUM(Nahkampf!E10:$Z10) -> 99.97% | E10: =SUM(Nahkampf!F10:$Z10) -> 99.74% | F10: =SUM(Nahkampf!G10:$Z10) -> 98.52% | G10: =SUM(Nahkampf!H10:$Z10) -> 93.99% | H10: =SUM(Nahkampf!I10:$Z10) -> 82.50% | I10: =SUM(Nahkampf!J10:$Z10) -> 62.25% | J10: =SUM(Nahkampf!K10:$Z10) -> 37.75% | K10: =SUM(Nahkampf!L10:$Z10) -> 17.50% | L10: =SUM(Nahkampf!M10:$Z10) -> 6.01% | M10: =SUM(Nahkampf!N10:$Z10) -> 1.48% | N10: =SUM(Nahkampf!O10:$Z10) -> 0.26% | O10: =SUM(Nahkampf!P10:$Z10) -> 0.03% | P10: =SUM(Nahkampf!Q10:$Z10) -> 0.00% | Q10: =SUM(Nahkampf!R10:$Z10) -> 0.00% | R10: =SUM(Nahkampf!S10:$Z10) -> 0.00% | S10: =SUM(Nahkampf!T10:$Z10) -> 0.00% | T10: =SUM(Nahkampf!U10:$Z10) -> 0.00% | U10: =SUM(Nahkampf!V10:$Z10) -> 0.00% | V10: =SUM(Nahkampf!W10:$Z10) -> 0.00% | W10: =SUM(Nahkampf!X10:$Z10) -> 0.00% | X10: =SUM(Nahkampf!Y10:$Z10) -> 0.00% | Y10: =SUM(Nahkampf!Z10:$Z10) -> 0.00%
A12: Schaden mit Reroll
A13: Würfel | B13: 1 | C13: 2 | D13: 3 | E13: 4 | F13: 5 | G13: 6 | H13: 7 | I13: 8 | J13: 9 | K13: 10 | L13: 11 | M13: 12 | N13: 13 | O13: 14 | P13: 15 | Q13: 16 | R13: 17 | S13: 18 | T13: 19 | U13: 20 | V13: 21 | W13: 22 | X13: 23 | Y13: 24
A14: 1 | B14: =SUM(Nahkampf!C14:$Z14) -> 97.22% | C14: =SUM(Nahkampf!D14:$Z14) -> 30.56% | D14: =SUM(Nahkampf!E14:$Z14) -> 0.00% | E14: =SUM(Nahkampf!F14:$Z14) -> 0.00% | F14: =SUM(Nahkampf!G14:$Z14) -> 0.00% | G14: =SUM(Nahkampf!H14:$Z14) -> 0.00% | H14: =SUM(Nahkampf!I14:$Z14) -> 0.00% | I14: =SUM(Nahkampf!J14:$Z14) -> 0.00% | J14: =SUM(Nahkampf!K14:$Z14) -> 0.00% | K14: =SUM(Nahkampf!L14:$Z14) -> 0.00% | L14: =SUM(Nahkampf!M14:$Z14) -> 0.00% | M14: =SUM(Nahkampf!N14:$Z14) -> 0.00% | N14: =SUM(Nahkampf!O14:$Z14) -> 0.00% | O14: =SUM(Nahkampf!P14:$Z14) -> 0.00% | P14: =SUM(Nahkampf!Q14:$Z14) -> 0.00% | Q14: =SUM(Nahkampf!R14:$Z14) -> 0.00% | R14: =SUM(Nahkampf!S14:$Z14) -> 0.00% | S14: =SUM(Nahkampf!T14:$Z14) -> 0.00% | T14: =SUM(Nahkampf!U14:$Z14) -> 0.00% | U14: =SUM(Nahkampf!V14:$Z14) -> 0.00% | V14: =SUM(Nahkampf!W14:$Z14) -> 0.00% | W14: =SUM(Nahkampf!X14:$Z14) -> 0.00% | X14: =SUM(Nahkampf!Y14:$Z14) -> 0.00% | Y14: =SUM(Nahkampf!Z14:$Z14) -> 0.00%
A15: 2 | B15: =SUM(Nahkampf!C15:$Z15) -> 99.54% | C15: =SUM(Nahkampf!D15:$Z15) -> 93.98% | D15: =SUM(Nahkampf!E15:$Z15) -> 40.74% | E15: =SUM(Nahkampf!F15:$Z15) -> 7.41% | F15: =SUM(Nahkampf!G15:$Z15) -> 0.00% | G15: =SUM(Nahkampf!H15:$Z15) -> 0.00% | H15: =SUM(Nahkampf!I15:$Z15) -> 0.00% | I15: =SUM(Nahkampf!J15:$Z15) -> 0.00% | J15: =SUM(Nahkampf!K15:$Z15) -> 0.00% | K15: =SUM(Nahkampf!L15:$Z15) -> 0.00% | L15: =SUM(Nahkampf!M15:$Z15) -> 0.00% | M15: =SUM(Nahkampf!N15:$Z15) -> 0.00% | N15: =SUM(Nahkampf!O15:$Z15) -> 0.00% | O15: =SUM(Nahkampf!P15:$Z15) -> 0.00% | P15: =SUM(Nahkampf!Q15:$Z15) -> 0.00% | Q15: =SUM(Nahkampf!R15:$Z15) -> 0.00% | R15: =SUM(Nahkampf!S15:$Z15) -> 0.00% | S15: =SUM(Nahkampf!T15:$Z15) -> 0.00% | T15: =SUM(Nahkampf!U15:$Z15) -> 0.00% | U15: =SUM(Nahkampf!V15:$Z15) -> 0.00% | V15: =SUM(Nahkampf!W15:$Z15) -> 0.00% | W15: =SUM(Nahkampf!X15:$Z15) -> 0.00% | X15: =SUM(Nahkampf!Y15:$Z15) -> 0.00% | Y15: =SUM(Nahkampf!Z15:$Z15) -> 0.00%
A16: 3 | B16: =SUM(Nahkampf!C16:$Z16) -> 99.92% | C16: =SUM(Nahkampf!D16:$Z16) -> 98.69% | D16: =SUM(Nahkampf!E16:$Z16) -> 90.97% | E16: =SUM(Nahkampf!F16:$Z16) -> 47.76% | F16: =SUM(Nahkampf!G16:$Z16) -> 12.73% | G16: =SUM(Nahkampf!H16:$Z16) -> 1.62% | H16: =SUM(Nahkampf!I16:$Z16) -> 0.00% | I16: =SUM(Nahkampf!J16:$Z16) -> 0.00% | J16: =SUM(Nahkampf!K16:$Z16) -> 0.00% | K16: =SUM(Nahkampf!L16:$Z16) -> 0.00% | L16: =SUM(Nahkampf!M16:$Z16) -> 0.00% | M16: =SUM(Nahkampf!N16:$Z16) -> 0.00% | N16: =SUM(Nahkampf!O16:$Z16) -> 0.00% | O16: =SUM(Nahkampf!P16:$Z16) -> 0.00% | P16: =SUM(Nahkampf!Q16:$Z16) -> 0.00% | Q16: =SUM(Nahkampf!R16:$Z16) -> 0.00% | R16: =SUM(Nahkampf!S16:$Z16) -> 0.00% | S16: =SUM(Nahkampf!T16:$Z16) -> 0.00% | T16: =SUM(Nahkampf!U16:$Z16) -> 0.00% | U16: =SUM(Nahkampf!V16:$Z16) -> 0.00% | V16: =SUM(Nahkampf!W16:$Z16) -> 0.00% | W16: =SUM(Nahkampf!X16:$Z16) -> 0.00% | X16: =SUM(Nahkampf!Y16:$Z16) -> 0.00% | Y16: =SUM(Nahkampf!Z16:$Z16) -> 0.00%
A17: 4 | B17: =SUM(Nahkampf!C17:$Z17) -> 99.99% | C17: =SUM(Nahkampf!D17:$Z17) -> 99.73% | D17: =SUM(Nahkampf!E17:$Z17) -> 97.61% | E17: =SUM(Nahkampf!F17:$Z17) -> 88.35% | F17: =SUM(Nahkampf!G17:$Z17) -> 52.42% | G17: =SUM(Nahkampf!H17:$Z17) -> 17.95% | H17: =SUM(Nahkampf!I17:$Z17) -> 3.42% | I17: =SUM(Nahkampf!J17:$Z17) -> 0.33% | J17: =SUM(Nahkampf!K17:$Z17) -> 0.00% | K17: =SUM(Nahkampf!L17:$Z17) -> 0.00% | L17: =SUM(Nahkampf!M17:$Z17) -> 0.00% | M17: =SUM(Nahkampf!N17:$Z17) -> 0.00% | N17: =SUM(Nahkampf!O17:$Z17) -> 0.00% | O17: =SUM(Nahkampf!P17:$Z17) -> 0.00% | P17: =SUM(Nahkampf!Q17:$Z17) -> 0.00% | Q17: =SUM(Nahkampf!R17:$Z17) -> 0.00% | R17: =SUM(Nahkampf!S17:$Z17) -> 0.00% | S17: =SUM(Nahkampf!T17:$Z17) -> 0.00% | T17: =SUM(Nahkampf!U17:$Z17) -> 0.00% | U17: =SUM(Nahkampf!V17:$Z17) -> 0.00% | V17: =SUM(Nahkampf!W17:$Z17) -> 0.00% | W17: =SUM(Nahkampf!X17:$Z17) -> 0.00% | X17: =SUM(Nahkampf!Y17:$Z17) -> 0.00% | Y17: =SUM(Nahkampf!Z17:$Z17) -> 0.00%
A18: 5 | B18: =SUM(Nahkampf!C18:$Z18) -> 100.00% | C18: =SUM(Nahkampf!D18:$Z18) -> 99.95% | D18: =SUM(Nahkampf!E18:$Z18) -> 99.42% | E18: =SUM(Nahkampf!F18:$Z18) -> 96.42% | F18: =SUM(Nahkampf!G18:$Z18) -> 86.10% | G18: =SUM(Nahkampf!H18:$Z18) -> 55.41% | H18: =SUM(Nahkampf!I18:$Z18) -> 22.65% | I18: =SUM(Nahkampf!J18:$Z18) -> 5.67% | J18: =SUM(Nahkampf!K18:$Z18) -> 0.84% | K18: =SUM(Nahkampf!L18:$Z18) -> 0.07% | L18: =SUM(Nahkampf!M18:$Z18) -> 0.00% | M18: =SUM(Nahkampf!N18:$Z18) -> 0.00% | N18: =SUM(Nahkampf!O18:$Z18) -> 0.00% | O18: =SUM(Nahkampf!P18:$Z18) -> 0.00% | P18: =SUM(Nahkampf!Q18:$Z18) -> 0.00% | Q18: =SUM(Nahkampf!R18:$Z18) -> 0.00% | R18: =SUM(Nahkampf!S18:$Z18) -> 0.00% | S18: =SUM(Nahkampf!T18:$Z18) -> 0.00% | T18: =SUM(Nahkampf!U18:$Z18) -> 0.00% | U18: =SUM(Nahkampf!V18:$Z18) -> 0.00% | V18: =SUM(Nahkampf!W18:$Z18) -> 0.00% | W18: =SUM(Nahkampf!X18:$Z18) -> 0.00% | X18: =SUM(Nahkampf!Y18:$Z18) -> 0.00% | Y18: =SUM(Nahkampf!Z18:$Z18) -> 0.00%
A19: 6 | B19: =SUM(Nahkampf!C19:$Z19) -> 100.00% | C19: =SUM(Nahkampf!D19:$Z19) -> 99.99% | D19: =SUM(Nahkampf!E19:$Z19) -> 99.87% | E19: =SUM(Nahkampf!F19:$Z19) -> 99.01% | F19: =SUM(Nahkampf!G19:$Z19) -> 95.20% | G19: =SUM(Nahkampf!H19:$Z19) -> 84.17% | H19: =SUM(Nahkampf!I19:$Z19) -> 57.26% | I19: =SUM(Nahkampf!J19:$Z19) -> 26.65% | J19: =SUM(Nahkampf!K19:$Z19) -> 8.15% | K19: =SUM(Nahkampf!L19:$Z19) -> 1.60% | L19: =SUM(Nahkampf!M19:$Z19) -> 0.19% | M19: =SUM(Nahkampf!N19:$Z19) -> 0.01% | N19: =SUM(Nahkampf!O19:$Z19) -> 0.00% | O19: =SUM(Nahkampf!P19:$Z19) -> 0.00% | P19: =SUM(Nahkampf!Q19:$Z19) -> 0.00% | Q19: =SUM(Nahkampf!R19:$Z19) -> 0.00% | R19: =SUM(Nahkampf!S19:$Z19) -> 0.00% | S19: =SUM(Nahkampf!T19:$Z19) -> 0.00% | T19: =SUM(Nahkampf!U19:$Z19) -> 0.00% | U19: =SUM(Nahkampf!V19:$Z19) -> 0.00% | V19: =SUM(Nahkampf!W19:$Z19) -> 0.00% | W19: =SUM(Nahkampf!X19:$Z19) -> 0.00% | X19: =SUM(Nahkampf!Y19:$Z19) -> 0.00% | Y19: =SUM(Nahkampf!Z19:$Z19) -> 0.00%
A20: 7 | B20: =SUM(Nahkampf!C20:$Z20) -> 100.00% | C20: =SUM(Nahkampf!D20:$Z20) -> 100.00% | D20: =SUM(Nahkampf!E20:$Z20) -> 99.97% | E20: =SUM(Nahkampf!F20:$Z20) -> 99.74% | F20: =SUM(Nahkampf!G20:$Z20) -> 98.52% | G20: =SUM(Nahkampf!H20:$Z20) -> 93.99% | H20: =SUM(Nahkampf!I20:$Z20) -> 82.50% | I20: =SUM(Nahkampf!J20:$Z20) -> 58.35% | J20: =SUM(Nahkampf!K20:$Z20) -> 29.95% | K20: =SUM(Nahkampf!L20:$Z20) -> 10.68% | L20: =SUM(Nahkampf!M20:$Z20) -> 2.59% | M20: =SUM(Nahkampf!N20:$Z20) -> 0.42% | N20: =SUM(Nahkampf!O20:$Z20) -> 0.04% | O20: =SUM(Nahkampf!P20:$Z20) -> 0.00% | P20: =SUM(Nahkampf!Q20:$Z20) -> 0.00% | Q20: =SUM(Nahkampf!R20:$Z20) -> 0.00% | R20: =SUM(Nahkampf!S20:$Z20) -> 0.00% | S20: =SUM(Nahkampf!T20:$Z20) -> 0.00% | T20: =SUM(Nahkampf!U20:$Z20) -> 0.00% | U20: =SUM(Nahkampf!V20:$Z20) -> 0.00% | V20: =SUM(Nahkampf!W20:$Z20) -> 0.00% | W20: =SUM(Nahkampf!X20:$Z20) -> 0.00% | X20: =SUM(Nahkampf!Y20:$Z20) -> 0.00% | Y20: =SUM(Nahkampf!Z20:$Z20) -> 0.00%
A21: 8 | B21: =SUM(Nahkampf!C21:$Z21) -> 100.00% | C21: =SUM(Nahkampf!D21:$Z21) -> 100.00% | D21: =SUM(Nahkampf!E21:$Z21) -> 99.99% | E21: =SUM(Nahkampf!F21:$Z21) -> 99.94% | F21: =SUM(Nahkampf!G21:$Z21) -> 99.58% | G21: =SUM(Nahkampf!H21:$Z21) -> 97.97% | H21: =SUM(Nahkampf!I21:$Z21) -> 92.83% | I21: =SUM(Nahkampf!J21:$Z21) -> 81.04% | J21: =SUM(Nahkampf!K21:$Z21) -> 58.94% | K21: =SUM(Nahkampf!L21:$Z21) -> 32.61% | L21: =SUM(Nahkampf!M21:$Z21) -> 13.11% | M21: =SUM(Nahkampf!N21:$Z21) -> 3.75% | N21: =SUM(Nahkampf!O21:$Z21) -> 0.75% | O21: =SUM(Nahkampf!P21:$Z21) -> 0.10% | P21: =SUM(Nahkampf!Q21:$Z21) -> 0.01% | Q21: =SUM(Nahkampf!R21:$Z21) -> 0.00% | R21: =SUM(Nahkampf!S21:$Z21) -> 0.00% | S21: =SUM(Nahkampf!T21:$Z21) -> 0.00% | T21: =SUM(Nahkampf!U21:$Z21) -> 0.00% | U21: =SUM(Nahkampf!V21:$Z21) -> 0.00% | V21: =SUM(Nahkampf!W21:$Z21) -> 0.00% | W21: =SUM(Nahkampf!X21:$Z21) -> 0.00% | X21: =SUM(Nahkampf!Y21:$Z21) -> 0.00% | Y21: =SUM(Nahkampf!Z21:$Z21) -> 0.00%

Sheet Fernkampf Mindestens
A1: Schaden ohne Reroll
A2: Würfel | B2: 1 | C2: 2 | D2: 3 | E2: 4 | F2: 5 | G2: 6 | H2: 7 | I2: 8 | J2: 9 | K2: 10 | L2: 11 | M2: 12 | N2: 13 | O2: 14 | P2: 15 | Q2: 16 | R2: 17 | S2: 18 | T2: 19 | U2: 20 | V2: 21 | W2: 22 | X2: 23 | Y2: 24
A3: 1 | B3: =SUM(Fernkampf!C3:$Z3) -> 66.67% | C3: =SUM(Fernkampf!D3:$Z3) -> 33.33% | D3: =SUM(Fernkampf!E3:$Z3) -> 0.00% | E3: =SUM(Fernkampf!F3:$Z3) -> 0.00% | F3: =SUM(Fernkampf!G3:$Z3) -> 0.00% | G3: =SUM(Fernkampf!H3:$Z3) -> 0.00% | H3: =SUM(Fernkampf!I3:$Z3) -> 0.00% | I3: =SUM(Fernkampf!J3:$Z3) -> 0.00% | J3: =SUM(Fernkampf!K3:$Z3) -> 0.00% | K3: =SUM(Fernkampf!L3:$Z3) -> 0.00% | L3: =SUM(Fernkampf!M3:$Z3) -> 0.00% | M3: =SUM(Fernkampf!N3:$Z3) -> 0.00% | N3: =SUM(Fernkampf!O3:$Z3) -> 0.00% | O3: =SUM(Fernkampf!P3:$Z3) -> 0.00% | P3: =SUM(Fernkampf!Q3:$Z3) -> 0.00% | Q3: =SUM(Fernkampf!R3:$Z3) -> 0.00% | R3: =SUM(Fernkampf!S3:$Z3) -> 0.00% | S3: =SUM(Fernkampf!T3:$Z3) -> 0.00% | T3: =SUM(Fernkampf!U3:$Z3) -> 0.00% | U3: =SUM(Fernkampf!V3:$Z3) -> 0.00% | V3: =SUM(Fernkampf!W3:$Z3) -> 0.00% | W3: =SUM(Fernkampf!X3:$Z3) -> 0.00% | X3: =SUM(Fernkampf!Y3:$Z3) -> 0.00% | Y3: =SUM(Fernkampf!Z3:$Z3) -> 0.00%
A4: 2 | B4: =SUM(Fernkampf!C4:$Z4) -> 88.89% | C4: =SUM(Fernkampf!D4:$Z4) -> 66.67% | D4: =SUM(Fernkampf!E4:$Z4) -> 33.33% | E4: =SUM(Fernkampf!F4:$Z4) -> 11.11% | F4: =SUM(Fernkampf!G4:$Z4) -> 0.00% | G4: =SUM(Fernkampf!H4:$Z4) -> 0.00% | H4: =SUM(Fernkampf!I4:$Z4) -> 0.00% | I4: =SUM(Fernkampf!J4:$Z4) -> 0.00% | J4: =SUM(Fernkampf!K4:$Z4) -> 0.00% | K4: =SUM(Fernkampf!L4:$Z4) -> 0.00% | L4: =SUM(Fernkampf!M4:$Z4) -> 0.00% | M4: =SUM(Fernkampf!N4:$Z4) -> 0.00% | N4: =SUM(Fernkampf!O4:$Z4) -> 0.00% | O4: =SUM(Fernkampf!P4:$Z4) -> 0.00% | P4: =SUM(Fernkampf!Q4:$Z4) -> 0.00% | Q4: =SUM(Fernkampf!R4:$Z4) -> 0.00% | R4: =SUM(Fernkampf!S4:$Z4) -> 0.00% | S4: =SUM(Fernkampf!T4:$Z4) -> 0.00% | T4: =SUM(Fernkampf!U4:$Z4) -> 0.00% | U4: =SUM(Fernkampf!V4:$Z4) -> 0.00% | V4: =SUM(Fernkampf!W4:$Z4) -> 0.00% | W4: =SUM(Fernkampf!X4:$Z4) -> 0.00% | X4: =SUM(Fernkampf!Y4:$Z4) -> 0.00% | Y4: =SUM(Fernkampf!Z4:$Z4) -> 0.00%
A5: 3 | B5: =SUM(Fernkampf!C5:$Z5) -> 96.30% | C5: =SUM(Fernkampf!D5:$Z5) -> 85.19% | D5: =SUM(Fernkampf!E5:$Z5) -> 62.96% | E5: =SUM(Fernkampf!F5:$Z5) -> 37.04% | F5: =SUM(Fernkampf!G5:$Z5) -> 14.81% | G5: =SUM(Fernkampf!H5:$Z5) -> 3.70% | H5: =SUM(Fernkampf!I5:$Z5) -> 0.00% | I5: =SUM(Fernkampf!J5:$Z5) -> 0.00% | J5: =SUM(Fernkampf!K5:$Z5) -> 0.00% | K5: =SUM(Fernkampf!L5:$Z5) -> 0.00% | L5: =SUM(Fernkampf!M5:$Z5) -> 0.00% | M5: =SUM(Fernkampf!N5:$Z5) -> 0.00% | N5: =SUM(Fernkampf!O5:$Z5) -> 0.00% | O5: =SUM(Fernkampf!P5:$Z5) -> 0.00% | P5: =SUM(Fernkampf!Q5:$Z5) -> 0.00% | Q5: =SUM(Fernkampf!R5:$Z5) -> 0.00% | R5: =SUM(Fernkampf!S5:$Z5) -> 0.00% | S5: =SUM(Fernkampf!T5:$Z5) -> 0.00% | T5: =SUM(Fernkampf!U5:$Z5) -> 0.00% | U5: =SUM(Fernkampf!V5:$Z5) -> 0.00% | V5: =SUM(Fernkampf!W5:$Z5) -> 0.00% | W5: =SUM(Fernkampf!X5:$Z5) -> 0.00% | X5: =SUM(Fernkampf!Y5:$Z5) -> 0.00% | Y5: =SUM(Fernkampf!Z5:$Z5) -> 0.00%
A6: 4 | B6: =SUM(Fernkampf!C6:$Z6) -> 98.77% | C6: =SUM(Fernkampf!D6:$Z6) -> 93.83% | D6: =SUM(Fernkampf!E6:$Z6) -> 81.48% | E6: =SUM(Fernkampf!F6:$Z6) -> 61.73% | F6: =SUM(Fernkampf!G6:$Z6) -> 38.27% | G6: =SUM(Fernkampf!H6:$Z6) -> 18.52% | H6: =SUM(Fernkampf!I6:$Z6) -> 6.17% | I6: =SUM(Fernkampf!J6:$Z6) -> 1.23% | J6: =SUM(Fernkampf!K6:$Z6) -> 0.00% | K6: =SUM(Fernkampf!L6:$Z6) -> 0.00% | L6: =SUM(Fernkampf!M6:$Z6) -> 0.00% | M6: =SUM(Fernkampf!N6:$Z6) -> 0.00% | N6: =SUM(Fernkampf!O6:$Z6) -> 0.00% | O6: =SUM(Fernkampf!P6:$Z6) -> 0.00% | P6: =SUM(Fernkampf!Q6:$Z6) -> 0.00% | Q6: =SUM(Fernkampf!R6:$Z6) -> 0.00% | R6: =SUM(Fernkampf!S6:$Z6) -> 0.00% | S6: =SUM(Fernkampf!T6:$Z6) -> 0.00% | T6: =SUM(Fernkampf!U6:$Z6) -> 0.00% | U6: =SUM(Fernkampf!V6:$Z6) -> 0.00% | V6: =SUM(Fernkampf!W6:$Z6) -> 0.00% | W6: =SUM(Fernkampf!X6:$Z6) -> 0.00% | X6: =SUM(Fernkampf!Y6:$Z6) -> 0.00% | Y6: =SUM(Fernkampf!Z6:$Z6) -> 0.00%
A7: 5 | B7: =SUM(Fernkampf!C7:$Z7) -> 99.59% | C7: =SUM(Fernkampf!D7:$Z7) -> 97.53% | D7: =SUM(Fernkampf!E7:$Z7) -> 91.36% | E7: =SUM(Fernkampf!F7:$Z7) -> 79.01% | F7: =SUM(Fernkampf!G7:$Z7) -> 60.49% | G7: =SUM(Fernkampf!H7:$Z7) -> 39.51% | H7: =SUM(Fernkampf!I7:$Z7) -> 20.99% | I7: =SUM(Fernkampf!J7:$Z7) -> 8.64% | J7: =SUM(Fernkampf!K7:$Z7) -> 2.47% | K7: =SUM(Fernkampf!L7:$Z7) -> 0.41% | L7: =SUM(Fernkampf!M7:$Z7) -> 0.00% | M7: =SUM(Fernkampf!N7:$Z7) -> 0.00% | N7: =SUM(Fernkampf!O7:$Z7) -> 0.00% | O7: =SUM(Fernkampf!P7:$Z7) -> 0.00% | P7: =SUM(Fernkampf!Q7:$Z7) -> 0.00% | Q7: =SUM(Fernkampf!R7:$Z7) -> 0.00% | R7: =SUM(Fernkampf!S7:$Z7) -> 0.00% | S7: =SUM(Fernkampf!T7:$Z7) -> 0.00% | T7: =SUM(Fernkampf!U7:$Z7) -> 0.00% | U7: =SUM(Fernkampf!V7:$Z7) -> 0.00% | V7: =SUM(Fernkampf!W7:$Z7) -> 0.00% | W7: =SUM(Fernkampf!X7:$Z7) -> 0.00% | X7: =SUM(Fernkampf!Y7:$Z7) -> 0.00% | Y7: =SUM(Fernkampf!Z7:$Z7) -> 0.00%
A8: 6 | B8: =SUM(Fernkampf!C8:$Z8) -> 99.86% | C8: =SUM(Fernkampf!D8:$Z8) -> 99.04% | D8: =SUM(Fernkampf!E8:$Z8) -> 96.16% | E8: =SUM(Fernkampf!F8:$Z8) -> 89.30% | F8: =SUM(Fernkampf!G8:$Z8) -> 76.95% | G8: =SUM(Fernkampf!H8:$Z8) -> 59.67% | H8: =SUM(Fernkampf!I8:$Z8) -> 40.33% | I8: =SUM(Fernkampf!J8:$Z8) -> 23.05% | J8: =SUM(Fernkampf!K8:$Z8) -> 10.70% | K8: =SUM(Fernkampf!L8:$Z8) -> 3.84% | L8: =SUM(Fernkampf!M8:$Z8) -> 0.96% | M8: =SUM(Fernkampf!N8:$Z8) -> 0.14% | N8: =SUM(Fernkampf!O8:$Z8) -> 0.00% | O8: =SUM(Fernkampf!P8:$Z8) -> 0.00% | P8: =SUM(Fernkampf!Q8:$Z8) -> 0.00% | Q8: =SUM(Fernkampf!R8:$Z8) -> 0.00% | R8: =SUM(Fernkampf!S8:$Z8) -> 0.00% | S8: =SUM(Fernkampf!T8:$Z8) -> 0.00% | T8: =SUM(Fernkampf!U8:$Z8) -> 0.00% | U8: =SUM(Fernkampf!V8:$Z8) -> 0.00% | V8: =SUM(Fernkampf!W8:$Z8) -> 0.00% | W8: =SUM(Fernkampf!X8:$Z8) -> 0.00% | X8: =SUM(Fernkampf!Y8:$Z8) -> 0.00% | Y8: =SUM(Fernkampf!Z8:$Z8) -> 0.00%
A9: 7 | B9: =SUM(Fernkampf!C9:$Z9) -> 99.95% | C9: =SUM(Fernkampf!D9:$Z9) -> 99.63% | D9: =SUM(Fernkampf!E9:$Z9) -> 98.35% | E9: =SUM(Fernkampf!F9:$Z9) -> 94.83% | F9: =SUM(Fernkampf!G9:$Z9) -> 87.47% | G9: =SUM(Fernkampf!H9:$Z9) -> 75.31% | H9: =SUM(Fernkampf!I9:$Z9) -> 58.98% | I9: =SUM(Fernkampf!J9:$Z9) -> 41.02% | J9: =SUM(Fernkampf!K9:$Z9) -> 24.69% | K9: =SUM(Fernkampf!L9:$Z9) -> 12.53% | L9: =SUM(Fernkampf!M9:$Z9) -> 5.17% | M9: =SUM(Fernkampf!N9:$Z9) -> 1.65% | N9: =SUM(Fernkampf!O9:$Z9) -> 0.37% | O9: =SUM(Fernkampf!P9:$Z9) -> 0.05% | P9: =SUM(Fernkampf!Q9:$Z9) -> 0.00% | Q9: =SUM(Fernkampf!R9:$Z9) -> 0.00% | R9: =SUM(Fernkampf!S9:$Z9) -> 0.00% | S9: =SUM(Fernkampf!T9:$Z9) -> 0.00% | T9: =SUM(Fernkampf!U9:$Z9) -> 0.00% | U9: =SUM(Fernkampf!V9:$Z9) -> 0.00% | V9: =SUM(Fernkampf!W9:$Z9) -> 0.00% | W9: =SUM(Fernkampf!X9:$Z9) -> 0.00% | X9: =SUM(Fernkampf!Y9:$Z9) -> 0.00% | Y9: =SUM(Fernkampf!Z9:$Z9) -> 0.00%
A10: 8 | B10: =SUM(Fernkampf!C10:$Z10) -> 99.98% | C10: =SUM(Fernkampf!D10:$Z10) -> 99.86% | D10: =SUM(Fernkampf!E10:$Z10) -> 99.31% | E10: =SUM(Fernkampf!F10:$Z10) -> 97.61% | F10: =SUM(Fernkampf!G10:$Z10) -> 93.55% | G10: =SUM(Fernkampf!H10:$Z10) -> 85.87% | H10: =SUM(Fernkampf!I10:$Z10) -> 73.92% | I10: =SUM(Fernkampf!J10:$Z10) -> 58.44% | J10: =SUM(Fernkampf!K10:$Z10) -> 41.56% | K10: =SUM(Fernkampf!L10:$Z10) -> 26.08% | L10: =SUM(Fernkampf!M10:$Z10) -> 14.13% | M10: =SUM(Fernkampf!N10:$Z10) -> 6.45% | N10: =SUM(Fernkampf!O10:$Z10) -> 2.39% | O10: =SUM(Fernkampf!P10:$Z10) -> 0.69% | P10: =SUM(Fernkampf!Q10:$Z10) -> 0.14% | Q10: =SUM(Fernkampf!R10:$Z10) -> 0.02% | R10: =SUM(Fernkampf!S10:$Z10) -> 0.00% | S10: =SUM(Fernkampf!T10:$Z10) -> 0.00% | T10: =SUM(Fernkampf!U10:$Z10) -> 0.00% | U10: =SUM(Fernkampf!V10:$Z10) -> 0.00% | V10: =SUM(Fernkampf!W10:$Z10) -> 0.00% | W10: =SUM(Fernkampf!X10:$Z10) -> 0.00% | X10: =SUM(Fernkampf!Y10:$Z10) -> 0.00% | Y10: =SUM(Fernkampf!Z10:$Z10) -> 0.00%
A12: Schaden mit Reroll
A13: Würfel | B13: 1 | C13: 2 | D13: 3 | E13: 4 | F13: 5 | G13: 6 | H13: 7 | I13: 8 | J13: 9 | K13: 10 | L13: 11 | M13: 12 | N13: 13 | O13: 14 | P13: 15 | Q13: 16 | R13: 17 | S13: 18 | T13: 19 | U13: 20 | V13: 21 | W13: 22 | X13: 23 | Y13: 24
A14: 1 | B14: =SUM(Fernkampf!C14:$Z14) -> 88.89% | C14: =SUM(Fernkampf!D14:$Z14) -> 55.56% | D14: =SUM(Fernkampf!E14:$Z14) -> 0.00% | E14: =SUM(Fernkampf!F14:$Z14) -> 0.00% | F14: =SUM(Fernkampf!G14:$Z14) -> 0.00% | G14: =SUM(Fernkampf!H14:$Z14) -> 0.00% | H14: =SUM(Fernkampf!I14:$Z14) -> 0.00% | I14: =SUM(Fernkampf!J14:$Z14) -> 0.00% | J14: =SUM(Fernkampf!K14:$Z14) -> 0.00% | K14: =SUM(Fernkampf!L14:$Z14) -> 0.00% | L14: =SUM(Fernkampf!M14:$Z14) -> 0.00% | M14: =SUM(Fernkampf!N14:$Z14) -> 0.00% | N14: =SUM(Fernkampf!O14:$Z14) -> 0.00% | O14: =SUM(Fernkampf!P14:$Z14) -> 0.00% | P14: =SUM(Fernkampf!Q14:$Z14) -> 0.00% | Q14: =SUM(Fernkampf!R14:$Z14) -> 0.00% | R14: =SUM(Fernkampf!S14:$Z14) -> 0.00% | S14: =SUM(Fernkampf!T14:$Z14) -> 0.00% | T14: =SUM(Fernkampf!U14:$Z14) -> 0.00% | U14: =SUM(Fernkampf!V14:$Z14) -> 0.00% | V14: =SUM(Fernkampf!W14:$Z14) -> 0.00% | W14: =SUM(Fernkampf!X14:$Z14) -> 0.00% | X14: =SUM(Fernkampf!Y14:$Z14) -> 0.00% | Y14: =SUM(Fernkampf!Z14:$Z14) -> 0.00%
A15: 2 | B15: =SUM(Fernkampf!C15:$Z15) -> 96.30% | C15: =SUM(Fernkampf!D15:$Z15) -> 85.19% | D15: =SUM(Fernkampf!E15:$Z15) -> 59.26% | E15: =SUM(Fernkampf!F15:$Z15) -> 25.93% | F15: =SUM(Fernkampf!G15:$Z15) -> 0.00% | G15: =SUM(Fernkampf!H15:$Z15) -> 0.00% | H15: =SUM(Fernkampf!I15:$Z15) -> 0.00% | I15: =SUM(Fernkampf!J15:$Z15) -> 0.00% | J15: =SUM(Fernkampf!K15:$Z15) -> 0.00% | K15: =SUM(Fernkampf!L15:$Z15) -> 0.00% | L15: =SUM(Fernkampf!M15:$Z15) -> 0.00% | M15: =SUM(Fernkampf!N15:$Z15) -> 0.00% | N15: =SUM(Fernkampf!O15:$Z15) -> 0.00% | O15: =SUM(Fernkampf!P15:$Z15) -> 0.00% | P15: =SUM(Fernkampf!Q15:$Z15) -> 0.00% | Q15: =SUM(Fernkampf!R15:$Z15) -> 0.00% | R15: =SUM(Fernkampf!S15:$Z15) -> 0.00% | S15: =SUM(Fernkampf!T15:$Z15) -> 0.00% | T15: =SUM(Fernkampf!U15:$Z15) -> 0.00% | U15: =SUM(Fernkampf!V15:$Z15) -> 0.00% | V15: =SUM(Fernkampf!W15:$Z15) -> 0.00% | W15: =SUM(Fernkampf!X15:$Z15) -> 0.00% | X15: =SUM(Fernkampf!Y15:$Z15) -> 0.00% | Y15: =SUM(Fernkampf!Z15:$Z15) -> 0.00%
A16: 3 | B16: =SUM(Fernkampf!C16:$Z16) -> 98.77% | C16: =SUM(Fernkampf!D16:$Z16) -> 93.83% | D16: =SUM(Fernkampf!E16:$Z16) -> 81.48% | E16: =SUM(Fernkampf!F16:$Z16) -> 60.49% | F16: =SUM(Fernkampf!G16:$Z16) -> 33.33% | G16: =SUM(Fernkampf!H16:$Z16) -> 11.11% | H16: =SUM(Fernkampf!I16:$Z16) -> 0.00% | I16: =SUM(Fernkampf!J16:$Z16) -> 0.00% | J16: =SUM(Fernkampf!K16:$Z16) -> 0.00% | K16: =SUM(Fernkampf!L16:$Z16) -> 0.00% | L16: =SUM(Fernkampf!M16:$Z16) -> 0.00% | M16: =SUM(Fernkampf!N16:$Z16) -> 0.00% | N16: =SUM(Fernkampf!O16:$Z16) -> 0.00% | O16: =SUM(Fernkampf!P16:$Z16) -> 0.00% | P16: =SUM(Fernkampf!Q16:$Z16) -> 0.00% | Q16: =SUM(Fernkampf!R16:$Z16) -> 0.00% | R16: =SUM(Fernkampf!S16:$Z16) -> 0.00% | S16: =SUM(Fernkampf!T16:$Z16) -> 0.00% | T16: =SUM(Fernkampf!U16:$Z16) -> 0.00% | U16: =SUM(Fernkampf!V16:$Z16) -> 0.00% | V16: =SUM(Fernkampf!W16:$Z16) -> 0.00% | W16: =SUM(Fernkampf!X16:$Z16) -> 0.00% | X16: =SUM(Fernkampf!Y16:$Z16) -> 0.00% | Y16: =SUM(Fernkampf!Z16:$Z16) -> 0.00%
A17: 4 | B17: =SUM(Fernkampf!C17:$Z17) -> 99.59% | C17: =SUM(Fernkampf!D17:$Z17) -> 97.53% | D17: =SUM(Fernkampf!E17:$Z17) -> 91.36% | E17: =SUM(Fernkampf!F17:$Z17) -> 79.01% | F17: =SUM(Fernkampf!G17:$Z17) -> 60.08% | G17: =SUM(Fernkampf!H17:$Z17) -> 37.45% | H17: =SUM(Fernkampf!I17:$Z17) -> 16.87% | I17: =SUM(Fernkampf!J17:$Z17) -> 4.53% | J17: =SUM(Fernkampf!K17:$Z17) -> 0.00% | K17: =SUM(Fernkampf!L17:$Z17) -> 0.00% | L17: =SUM(Fernkampf!M17:$Z17) -> 0.00% | M17: =SUM(Fernkampf!N17:$Z17) -> 0.00% | N17: =SUM(Fernkampf!O17:$Z17) -> 0.00% | O17: =SUM(Fernkampf!P17:$Z17) -> 0.00% | P17: =SUM(Fernkampf!Q17:$Z17) -> 0.00% | Q17: =SUM(Fernkampf!R17:$Z17) -> 0.00% | R17: =SUM(Fernkampf!S17:$Z17) -> 0.00% | S17: =SUM(Fernkampf!T17:$Z17) -> 0.00% | T17: =SUM(Fernkampf!U17:$Z17) -> 0.00% | U17: =SUM(Fernkampf!V17:$Z17) -> 0.00% | V17: =SUM(Fernkampf!W17:$Z17) -> 0.00% | W17: =SUM(Fernkampf!X17:$Z17) -> 0.00% | X17: =SUM(Fernkampf!Y17:$Z17) -> 0.00% | Y17: =SUM(Fernkampf!Z17:$Z17) -> 0.00%
A18: 5 | B18: =SUM(Fernkampf!C18:$Z18) -> 99.86% | C18: =SUM(Fernkampf!D18:$Z18) -> 99.04% | D18: =SUM(Fernkampf!E18:$Z18) -> 96.16% | E18: =SUM(Fernkampf!F18:$Z18) -> 89.30% | F18: =SUM(Fernkampf!G18:$Z18) -> 76.95% | G18: =SUM(Fernkampf!H18:$Z18) -> 59.53% | H18: =SUM(Fernkampf!I18:$Z18) -> 39.51% | I18: =SUM(Fernkampf!J18:$Z18) -> 20.99% | J18: =SUM(Fernkampf!K18:$Z18) -> 7.96% | K18: =SUM(Fernkampf!L18:$Z18) -> 1.78% | L18: =SUM(Fernkampf!M18:$Z18) -> 0.00% | M18: =SUM(Fernkampf!N18:$Z18) -> 0.00% | N18: =SUM(Fernkampf!O18:$Z18) -> 0.00% | O18: =SUM(Fernkampf!P18:$Z18) -> 0.00% | P18: =SUM(Fernkampf!Q18:$Z18) -> 0.00% | Q18: =SUM(Fernkampf!R18:$Z18) -> 0.00% | R18: =SUM(Fernkampf!S18:$Z18) -> 0.00% | S18: =SUM(Fernkampf!T18:$Z18) -> 0.00% | T18: =SUM(Fernkampf!U18:$Z18) -> 0.00% | U18: =SUM(Fernkampf!V18:$Z18) -> 0.00% | V18: =SUM(Fernkampf!W18:$Z18) -> 0.00% | W18: =SUM(Fernkampf!X18:$Z18) -> 0.00% | X18: =SUM(Fernkampf!Y18:$Z18) -> 0.00% | Y18: =SUM(Fernkampf!Z18:$Z18) -> 0.00%
A19: 6 | B19: =SUM(Fernkampf!C19:$Z19) -> 99.95% | C19: =SUM(Fernkampf!D19:$Z19) -> 99.63% | D19: =SUM(Fernkampf!E19:$Z19) -> 98.35% | E19: =SUM(Fernkampf!F19:$Z19) -> 94.83% | F19: =SUM(Fernkampf!G19:$Z19) -> 87.47% | G19: =SUM(Fernkampf!H19:$Z19) -> 75.31% | H19: =SUM(Fernkampf!I19:$Z19) -> 58.94% | I19: =SUM(Fernkampf!J19:$Z19) -> 40.70% | J19: =SUM(Fernkampf!K19:$Z19) -> 23.73% | K19: =SUM(Fernkampf!L19:$Z19) -> 10.93% | L19: =SUM(Fernkampf!M19:$Z19) -> 3.57% | M19: =SUM(Fernkampf!N19:$Z19) -> 0.69% | N19: =SUM(Fernkampf!O19:$Z19) -> 0.00% | O19: =SUM(Fernkampf!P19:$Z19) -> 0.00% | P19: =SUM(Fernkampf!Q19:$Z19) -> 0.00% | Q19: =SUM(Fernkampf!R19:$Z19) -> 0.00% | R19: =SUM(Fernkampf!S19:$Z19) -> 0.00% | S19: =SUM(Fernkampf!T19:$Z19) -> 0.00% | T19: =SUM(Fernkampf!U19:$Z19) -> 0.00% | U19: =SUM(Fernkampf!V19:$Z19) -> 0.00% | V19: =SUM(Fernkampf!W19:$Z19) -> 0.00% | W19: =SUM(Fernkampf!X19:$Z19) -> 0.00% | X19: =SUM(Fernkampf!Y19:$Z19) -> 0.00% | Y19: =SUM(Fernkampf!Z19:$Z19) -> 0.00%
A20: 7 | B20: =SUM(Fernkampf!C20:$Z20) -> 99.98% | C20: =SUM(Fernkampf!D20:$Z20) -> 99.86% | D20: =SUM(Fernkampf!E20:$Z20) -> 99.31% | E20: =SUM(Fernkampf!F20:$Z20) -> 97.61% | F20: =SUM(Fernkampf!G20:$Z20) -> 93.55% | G20: =SUM(Fernkampf!H20:$Z20) -> 85.87% | H20: =SUM(Fernkampf!I20:$Z20) -> 73.92% | I20: =SUM(Fernkampf!J20:$Z20) -> 58.42% | J20: =SUM(Fernkampf!K20:$Z20) -> 41.44% | K20: =SUM(Fernkampf!L20:$Z20) -> 25.65% | L20: =SUM(Fernkampf!M20:$Z20) -> 13.28% | M20: =SUM(Fernkampf!N20:$Z20) -> 5.38% | N20: =SUM(Fernkampf!O20:$Z20) -> 1.54% | O20: =SUM(Fernkampf!P20:$Z20) -> 0.26% | P20: =SUM(Fernkampf!Q20:$Z20) -> 0.00% | Q20: =SUM(Fernkampf!R20:$Z20) -> 0.00% | R20: =SUM(Fernkampf!S20:$Z20) -> 0.00% | S20: =SUM(Fernkampf!T20:$Z20) -> 0.00% | T20: =SUM(Fernkampf!U20:$Z20) -> 0.00% | U20: =SUM(Fernkampf!V20:$Z20) -> 0.00% | V20: =SUM(Fernkampf!W20:$Z20) -> 0.00% | W20: =SUM(Fernkampf!X20:$Z20) -> 0.00% | X20: =SUM(Fernkampf!Y20:$Z20) -> 0.00% | Y20: =SUM(Fernkampf!Z20:$Z20) -> 0.00%
A21: 8 | B21: =SUM(Fernkampf!C21:$Z21) -> 99.99% | C21: =SUM(Fernkampf!D21:$Z21) -> 99.95% | D21: =SUM(Fernkampf!E21:$Z21) -> 99.72% | E21: =SUM(Fernkampf!F21:$Z21) -> 98.93% | F21: =SUM(Fernkampf!G21:$Z21) -> 96.82% | G21: =SUM(Fernkampf!H21:$Z21) -> 92.34% | H21: =SUM(Fernkampf!I21:$Z21) -> 84.45% | I21: =SUM(Fernkampf!J21:$Z21) -> 72.74% | J21: =SUM(Fernkampf!K21:$Z21) -> 57.97% | K21: =SUM(Fernkampf!L21:$Z21) -> 41.98% | L21: =SUM(Fernkampf!M21:$Z21) -> 27.07% | M21: =SUM(Fernkampf!N21:$Z21) -> 15.12% | N21: =SUM(Fernkampf!O21:$Z21) -> 7.02% | O21: =SUM(Fernkampf!P21:$Z21) -> 2.54% | P21: =SUM(Fernkampf!Q21:$Z21) -> 0.65% | Q21: =SUM(Fernkampf!R21:$Z21) -> 0.10% | R21: =SUM(Fernkampf!S21:$Z21) -> 0.00% | S21: =SUM(Fernkampf!T21:$Z21) -> 0.00% | T21: =SUM(Fernkampf!U21:$Z21) -> 0.00% | U21: =SUM(Fernkampf!V21:$Z21) -> 0.00% | V21: =SUM(Fernkampf!W21:$Z21) -> 0.00% | W21: =SUM(Fernkampf!X21:$Z21) -> 0.00% | X21: =SUM(Fernkampf!Y21:$Z21) -> 0.00% | Y21: =SUM(Fernkampf!Z21:$Z21) -> 0.00%

Sheet Explosion Mindestens
A1: Schaden ohne Reroll
A2: Würfel | B2: 1 | C2: 2 | D2: 3 | E2: 4 | F2: 5 | G2: 6 | H2: 7 | I2: 8 | J2: 9 | K2: 10 | L2: 11 | M2: 12 | N2: 13 | O2: 14 | P2: 15 | Q2: 16 | R2: 17 | S2: 18 | T2: 19 | U2: 20 | V2: 21 | W2: 22 | X2: 23 | Y2: 24
A3: 1 | B3: =SUM(Explosion!C3:$Z3) -> 50.00% | C3: =SUM(Explosion!D3:$Z3) -> 33.33% | D3: =SUM(Explosion!E3:$Z3) -> 16.67% | E3: =SUM(Explosion!F3:$Z3) -> 0.00% | F3: =SUM(Explosion!G3:$Z3) -> 0.00% | G3: =SUM(Explosion!H3:$Z3) -> 0.00% | H3: =SUM(Explosion!I3:$Z3) -> 0.00% | I3: =SUM(Explosion!J3:$Z3) -> 0.00% | J3: =SUM(Explosion!K3:$Z3) -> 0.00% | K3: =SUM(Explosion!L3:$Z3) -> 0.00% | L3: =SUM(Explosion!M3:$Z3) -> 0.00% | M3: =SUM(Explosion!N3:$Z3) -> 0.00% | N3: =SUM(Explosion!O3:$Z3) -> 0.00% | O3: =SUM(Explosion!P3:$Z3) -> 0.00% | P3: =SUM(Explosion!Q3:$Z3) -> 0.00% | Q3: =SUM(Explosion!R3:$Z3) -> 0.00% | R3: =SUM(Explosion!S3:$Z3) -> 0.00% | S3: =SUM(Explosion!T3:$Z3) -> 0.00% | T3: =SUM(Explosion!U3:$Z3) -> 0.00% | U3: =SUM(Explosion!V3:$Z3) -> 0.00% | V3: =SUM(Explosion!W3:$Z3) -> 0.00% | W3: =SUM(Explosion!X3:$Z3) -> 0.00% | X3: =SUM(Explosion!Y3:$Z3) -> 0.00% | Y3: =SUM(Explosion!Z3:$Z3) -> 0.00%
A4: 2 | B4: =SUM(Explosion!C4:$Z4) -> 75.00% | C4: =SUM(Explosion!D4:$Z4) -> 58.33% | D4: =SUM(Explosion!E4:$Z4) -> 38.89% | E4: =SUM(Explosion!F4:$Z4) -> 16.67% | F4: =SUM(Explosion!G4:$Z4) -> 8.33% | G4: =SUM(Explosion!H4:$Z4) -> 2.78% | H4: =SUM(Explosion!I4:$Z4) -> 0.00% | I4: =SUM(Explosion!J4:$Z4) -> 0.00% | J4: =SUM(Explosion!K4:$Z4) -> 0.00% | K4: =SUM(Explosion!L4:$Z4) -> 0.00% | L4: =SUM(Explosion!M4:$Z4) -> 0.00% | M4: =SUM(Explosion!N4:$Z4) -> 0.00% | N4: =SUM(Explosion!O4:$Z4) -> 0.00% | O4: =SUM(Explosion!P4:$Z4) -> 0.00% | P4: =SUM(Explosion!Q4:$Z4) -> 0.00% | Q4: =SUM(Explosion!R4:$Z4) -> 0.00% | R4: =SUM(Explosion!S4:$Z4) -> 0.00% | S4: =SUM(Explosion!T4:$Z4) -> 0.00% | T4: =SUM(Explosion!U4:$Z4) -> 0.00% | U4: =SUM(Explosion!V4:$Z4) -> 0.00% | V4: =SUM(Explosion!W4:$Z4) -> 0.00% | W4: =SUM(Explosion!X4:$Z4) -> 0.00% | X4: =SUM(Explosion!Y4:$Z4) -> 0.00% | Y4: =SUM(Explosion!Z4:$Z4) -> 0.00%
A5: 3 | B5: =SUM(Explosion!C5:$Z5) -> 87.50% | C5: =SUM(Explosion!D5:$Z5) -> 75.00% | D5: =SUM(Explosion!E5:$Z5) -> 58.33% | E5: =SUM(Explosion!F5:$Z5) -> 37.04% | F5: =SUM(Explosion!G5:$Z5) -> 23.15% | G5: =SUM(Explosion!H5:$Z5) -> 12.04% | H5: =SUM(Explosion!I5:$Z5) -> 4.63% | I5: =SUM(Explosion!J5:$Z5) -> 1.85% | J5: =SUM(Explosion!K5:$Z5) -> 0.46% | K5: =SUM(Explosion!L5:$Z5) -> 0.00% | L5: =SUM(Explosion!M5:$Z5) -> 0.00% | M5: =SUM(Explosion!N5:$Z5) -> 0.00% | N5: =SUM(Explosion!O5:$Z5) -> 0.00% | O5: =SUM(Explosion!P5:$Z5) -> 0.00% | P5: =SUM(Explosion!Q5:$Z5) -> 0.00% | Q5: =SUM(Explosion!R5:$Z5) -> 0.00% | R5: =SUM(Explosion!S5:$Z5) -> 0.00% | S5: =SUM(Explosion!T5:$Z5) -> 0.00% | T5: =SUM(Explosion!U5:$Z5) -> 0.00% | U5: =SUM(Explosion!V5:$Z5) -> 0.00% | V5: =SUM(Explosion!W5:$Z5) -> 0.00% | W5: =SUM(Explosion!X5:$Z5) -> 0.00% | X5: =SUM(Explosion!Y5:$Z5) -> 0.00% | Y5: =SUM(Explosion!Z5:$Z5) -> 0.00%
A6: 4 | B6: =SUM(Explosion!C6:$Z6) -> 93.75% | C6: =SUM(Explosion!D6:$Z6) -> 85.42% | D6: =SUM(Explosion!E6:$Z6) -> 72.92% | E6: =SUM(Explosion!F6:$Z6) -> 55.32% | F6: =SUM(Explosion!G6:$Z6) -> 39.97% | G6: =SUM(Explosion!H6:$Z6) -> 25.77% | H6: =SUM(Explosion!I6:$Z6) -> 14.35% | I6: =SUM(Explosion!J6:$Z6) -> 7.56% | J6: =SUM(Explosion!K6:$Z6) -> 3.32% | K6: =SUM(Explosion!L6:$Z6) -> 1.16% | L6: =SUM(Explosion!M6:$Z6) -> 0.39% | M6: =SUM(Explosion!N6:$Z6) -> 0.08% | N6: =SUM(Explosion!O6:$Z6) -> 0.00% | O6: =SUM(Explosion!P6:$Z6) -> 0.00% | P6: =SUM(Explosion!Q6:$Z6) -> 0.00% | Q6: =SUM(Explosion!R6:$Z6) -> 0.00% | R6: =SUM(Explosion!S6:$Z6) -> 0.00% | S6: =SUM(Explosion!T6:$Z6) -> 0.00% | T6: =SUM(Explosion!U6:$Z6) -> 0.00% | U6: =SUM(Explosion!V6:$Z6) -> 0.00% | V6: =SUM(Explosion!W6:$Z6) -> 0.00% | W6: =SUM(Explosion!X6:$Z6) -> 0.00% | X6: =SUM(Explosion!Y6:$Z6) -> 0.00% | Y6: =SUM(Explosion!Z6:$Z6) -> 0.00%
A7: 5 | B7: =SUM(Explosion!C7:$Z7) -> 96.88% | C7: =SUM(Explosion!D7:$Z7) -> 91.67% | D7: =SUM(Explosion!E7:$Z7) -> 82.99% | E7: =SUM(Explosion!F7:$Z7) -> 69.68% | F7: =SUM(Explosion!G7:$Z7) -> 55.59% | G7: =SUM(Explosion!H7:$Z7) -> 40.92% | H7: =SUM(Explosion!I7:$Z7) -> 27.35% | I7: =SUM(Explosion!J7:$Z7) -> 17.13% | J7: =SUM(Explosion!K7:$Z7) -> 9.61% | K7: =SUM(Explosion!L7:$Z7) -> 4.78% | L7: =SUM(Explosion!M7:$Z7) -> 2.20% | M7: =SUM(Explosion!N7:$Z7) -> 0.85% | N7: =SUM(Explosion!O7:$Z7) -> 0.27% | O7: =SUM(Explosion!P7:$Z7) -> 0.08% | P7: =SUM(Explosion!Q7:$Z7) -> 0.01% | Q7: =SUM(Explosion!R7:$Z7) -> 0.00% | R7: =SUM(Explosion!S7:$Z7) -> 0.00% | S7: =SUM(Explosion!T7:$Z7) -> 0.00% | T7: =SUM(Explosion!U7:$Z7) -> 0.00% | U7: =SUM(Explosion!V7:$Z7) -> 0.00% | V7: =SUM(Explosion!W7:$Z7) -> 0.00% | W7: =SUM(Explosion!X7:$Z7) -> 0.00% | X7: =SUM(Explosion!Y7:$Z7) -> 0.00% | Y7: =SUM(Explosion!Z7:$Z7) -> 0.00%
A8: 6 | B8: =SUM(Explosion!C8:$Z8) -> 98.44% | C8: =SUM(Explosion!D8:$Z8) -> 95.31% | D8: =SUM(Explosion!E8:$Z8) -> 89.58% | E8: =SUM(Explosion!F8:$Z8) -> 80.09% | F8: =SUM(Explosion!G8:$Z8) -> 68.52% | G8: =SUM(Explosion!H8:$Z8) -> 55.17% | H8: =SUM(Explosion!I8:$Z8) -> 41.38% | I8: =SUM(Explosion!J8:$Z8) -> 29.21% | J8: =SUM(Explosion!K8:$Z8) -> 19.04% | K8: =SUM(Explosion!L8:$Z8) -> 11.41% | L8: =SUM(Explosion!M8:$Z8) -> 6.35% | M8: =SUM(Explosion!N8:$Z8) -> 3.19% | N8: =SUM(Explosion!O8:$Z8) -> 1.44% | O8: =SUM(Explosion!P8:$Z8) -> 0.59% | P8: =SUM(Explosion!Q8:$Z8) -> 0.21% | Q8: =SUM(Explosion!R8:$Z8) -> 0.06% | R8: =SUM(Explosion!S8:$Z8) -> 0.02% | S8: =SUM(Explosion!T8:$Z8) -> 0.00% | T8: =SUM(Explosion!U8:$Z8) -> 0.00% | U8: =SUM(Explosion!V8:$Z8) -> 0.00% | V8: =SUM(Explosion!W8:$Z8) -> 0.00% | W8: =SUM(Explosion!X8:$Z8) -> 0.00% | X8: =SUM(Explosion!Y8:$Z8) -> 0.00% | Y8: =SUM(Explosion!Z8:$Z8) -> 0.00%
A9: 7 | B9: =SUM(Explosion!C9:$Z9) -> 99.22% | C9: =SUM(Explosion!D9:$Z9) -> 97.40% | D9: =SUM(Explosion!E9:$Z9) -> 93.75% | E9: =SUM(Explosion!F9:$Z9) -> 87.27% | F9: =SUM(Explosion!G9:$Z9) -> 78.42% | G9: =SUM(Explosion!H9:$Z9) -> 67.28% | H9: =SUM(Explosion!I9:$Z9) -> 54.65% | I9: =SUM(Explosion!J9:$Z9) -> 42.12% | J9: =SUM(Explosion!K9:$Z9) -> 30.48% | K9: =SUM(Explosion!L9:$Z9) -> 20.64% | L9: =SUM(Explosion!M9:$Z9) -> 13.12% | M9: =SUM(Explosion!N9:$Z9) -> 7.73% | N9: =SUM(Explosion!O9:$Z9) -> 4.21% | O9: =SUM(Explosion!P9:$Z9) -> 2.13% | P9: =SUM(Explosion!Q9:$Z9) -> 0.97% | Q9: =SUM(Explosion!R9:$Z9) -> 0.40% | R9: =SUM(Explosion!S9:$Z9) -> 0.15% | S9: =SUM(Explosion!T9:$Z9) -> 0.05% | T9: =SUM(Explosion!U9:$Z9) -> 0.01% | U9: =SUM(Explosion!V9:$Z9) -> 0.00% | V9: =SUM(Explosion!W9:$Z9) -> 0.00% | W9: =SUM(Explosion!X9:$Z9) -> 0.00% | X9: =SUM(Explosion!Y9:$Z9) -> 0.00% | Y9: =SUM(Explosion!Z9:$Z9) -> 0.00%
A10: 8 | B10: =SUM(Explosion!C10:$Z10) -> 99.61% | C10: =SUM(Explosion!D10:$Z10) -> 98.57% | D10: =SUM(Explosion!E10:$Z10) -> 96.31% | E10: =SUM(Explosion!F10:$Z10) -> 92.03% | F10: =SUM(Explosion!G10:$Z10) -> 85.61% | G10: =SUM(Explosion!H10:$Z10) -> 76.88% | H10: =SUM(Explosion!I10:$Z10) -> 66.15% | I10: =SUM(Explosion!J10:$Z10) -> 54.45% | J10: =SUM(Explosion!K10:$Z10) -> 42.58% | K10: =SUM(Explosion!L10:$Z10) -> 31.53% | L10: =SUM(Explosion!M10:$Z10) -> 22.10% | M10: =SUM(Explosion!N10:$Z10) -> 14.57% | N10: =SUM(Explosion!O10:$Z10) -> 9.02% | O10: =SUM(Explosion!P10:$Z10) -> 5.24% | P10: =SUM(Explosion!Q10:$Z10) -> 2.83% | Q10: =SUM(Explosion!R10:$Z10) -> 1.42% | R10: =SUM(Explosion!S10:$Z10) -> 0.66% | S10: =SUM(Explosion!T10:$Z10) -> 0.28% | T10: =SUM(Explosion!U10:$Z10) -> 0.11% | U10: =SUM(Explosion!V10:$Z10) -> 0.04% | V10: =SUM(Explosion!W10:$Z10) -> 0.01% | W10: =SUM(Explosion!X10:$Z10) -> 0.00% | X10: =SUM(Explosion!Y10:$Z10) -> 0.00% | Y10: =SUM(Explosion!Z10:$Z10) -> 0.00%
A12: Schaden mit Reroll
A13: Würfel | B13: 1 | C13: 2 | D13: 3 | E13: 4 | F13: 5 | G13: 6 | H13: 7 | I13: 8 | J13: 9 | K13: 10 | L13: 11 | M13: 12 | N13: 13 | O13: 14 | P13: 15 | Q13: 16 | R13: 17 | S13: 18 | T13: 19 | U13: 20 | V13: 21 | W13: 22 | X13: 23 | Y13: 24
A14: 1 | B14: =SUM(Explosion!C14:$Z14) -> 75.00% | C14: =SUM(Explosion!D14:$Z14) -> 55.56% | D14: =SUM(Explosion!E14:$Z14) -> 30.56% | E14: =SUM(Explosion!F14:$Z14) -> 0.00% | F14: =SUM(Explosion!G14:$Z14) -> 0.00% | G14: =SUM(Explosion!H14:$Z14) -> 0.00% | H14: =SUM(Explosion!I14:$Z14) -> 0.00% | I14: =SUM(Explosion!J14:$Z14) -> 0.00% | J14: =SUM(Explosion!K14:$Z14) -> 0.00% | K14: =SUM(Explosion!L14:$Z14) -> 0.00% | L14: =SUM(Explosion!M14:$Z14) -> 0.00% | M14: =SUM(Explosion!N14:$Z14) -> 0.00% | N14: =SUM(Explosion!O14:$Z14) -> 0.00% | O14: =SUM(Explosion!P14:$Z14) -> 0.00% | P14: =SUM(Explosion!Q14:$Z14) -> 0.00% | Q14: =SUM(Explosion!R14:$Z14) -> 0.00% | R14: =SUM(Explosion!S14:$Z14) -> 0.00% | S14: =SUM(Explosion!T14:$Z14) -> 0.00% | T14: =SUM(Explosion!U14:$Z14) -> 0.00% | U14: =SUM(Explosion!V14:$Z14) -> 0.00% | V14: =SUM(Explosion!W14:$Z14) -> 0.00% | W14: =SUM(Explosion!X14:$Z14) -> 0.00% | X14: =SUM(Explosion!Y14:$Z14) -> 0.00% | Y14: =SUM(Explosion!Z14:$Z14) -> 0.00%
A15: 2 | B15: =SUM(Explosion!C15:$Z15) -> 87.50% | C15: =SUM(Explosion!D15:$Z15) -> 75.00% | D15: =SUM(Explosion!E15:$Z15) -> 57.87% | E15: =SUM(Explosion!F15:$Z15) -> 35.65% | F15: =SUM(Explosion!G15:$Z15) -> 19.91% | G15: =SUM(Explosion!H15:$Z15) -> 7.41% | H15: =SUM(Explosion!I15:$Z15) -> 0.00% | I15: =SUM(Explosion!J15:$Z15) -> 0.00% | J15: =SUM(Explosion!K15:$Z15) -> 0.00% | K15: =SUM(Explosion!L15:$Z15) -> 0.00% | L15: =SUM(Explosion!M15:$Z15) -> 0.00% | M15: =SUM(Explosion!N15:$Z15) -> 0.00% | N15: =SUM(Explosion!O15:$Z15) -> 0.00% | O15: =SUM(Explosion!P15:$Z15) -> 0.00% | P15: =SUM(Explosion!Q15:$Z15) -> 0.00% | Q15: =SUM(Explosion!R15:$Z15) -> 0.00% | R15: =SUM(Explosion!S15:$Z15) -> 0.00% | S15: =SUM(Explosion!T15:$Z15) -> 0.00% | T15: =SUM(Explosion!U15:$Z15) -> 0.00% | U15: =SUM(Explosion!V15:$Z15) -> 0.00% | V15: =SUM(Explosion!W15:$Z15) -> 0.00% | W15: =SUM(Explosion!X15:$Z15) -> 0.00% | X15: =SUM(Explosion!Y15:$Z15) -> 0.00% | Y15: =SUM(Explosion!Z15:$Z15) -> 0.00%
A16: 3 | B16: =SUM(Explosion!C16:$Z16) -> 93.75% | C16: =SUM(Explosion!D16:$Z16) -> 85.42% | D16: =SUM(Explosion!E16:$Z16) -> 72.92% | E16: =SUM(Explosion!F16:$Z16) -> 55.25% | F16: =SUM(Explosion!G16:$Z16) -> 39.66% | G16: =SUM(Explosion!H16:$Z16) -> 25.00% | H16: =SUM(Explosion!I16:$Z16) -> 13.04% | I16: =SUM(Explosion!J16:$Z16) -> 5.79% | J16: =SUM(Explosion!K16:$Z16) -> 1.62% | K16: =SUM(Explosion!L16:$Z16) -> 0.00% | L16: =SUM(Explosion!M16:$Z16) -> 0.00% | M16: =SUM(Explosion!N16:$Z16) -> 0.00% | N16: =SUM(Explosion!O16:$Z16) -> 0.00% | O16: =SUM(Explosion!P16:$Z16) -> 0.00% | P16: =SUM(Explosion!Q16:$Z16) -> 0.00% | Q16: =SUM(Explosion!R16:$Z16) -> 0.00% | R16: =SUM(Explosion!S16:$Z16) -> 0.00% | S16: =SUM(Explosion!T16:$Z16) -> 0.00% | T16: =SUM(Explosion!U16:$Z16) -> 0.00% | U16: =SUM(Explosion!V16:$Z16) -> 0.00% | V16: =SUM(Explosion!W16:$Z16) -> 0.00% | W16: =SUM(Explosion!X16:$Z16) -> 0.00% | X16: =SUM(Explosion!Y16:$Z16) -> 0.00% | Y16: =SUM(Explosion!Z16:$Z16) -> 0.00%
A17: 4 | B17: =SUM(Explosion!C17:$Z17) -> 96.88% | C17: =SUM(Explosion!D17:$Z17) -> 91.67% | D17: =SUM(Explosion!E17:$Z17) -> 82.99% | E17: =SUM(Explosion!F17:$Z17) -> 69.68% | F17: =SUM(Explosion!G17:$Z17) -> 55.58% | G17: =SUM(Explosion!H17:$Z17) -> 40.86% | H17: =SUM(Explosion!I17:$Z17) -> 27.16% | I17: =SUM(Explosion!J17:$Z17) -> 16.74% | J17: =SUM(Explosion!K17:$Z17) -> 9.01% | K17: =SUM(Explosion!L17:$Z17) -> 4.06% | L17: =SUM(Explosion!M17:$Z17) -> 1.49% | M17: =SUM(Explosion!N17:$Z17) -> 0.33% | N17: =SUM(Explosion!O17:$Z17) -> 0.00% | O17: =SUM(Explosion!P17:$Z17) -> 0.00% | P17: =SUM(Explosion!Q17:$Z17) -> 0.00% | Q17: =SUM(Explosion!R17:$Z17) -> 0.00% | R17: =SUM(Explosion!S17:$Z17) -> 0.00% | S17: =SUM(Explosion!T17:$Z17) -> 0.00% | T17: =SUM(Explosion!U17:$Z17) -> 0.00% | U17: =SUM(Explosion!V17:$Z17) -> 0.00% | V17: =SUM(Explosion!W17:$Z17) -> 0.00% | W17: =SUM(Explosion!X17:$Z17) -> 0.00% | X17: =SUM(Explosion!Y17:$Z17) -> 0.00% | Y17: =SUM(Explosion!Z17:$Z17) -> 0.00%
A18: 5 | B18: =SUM(Explosion!C18:$Z18) -> 98.44% | C18: =SUM(Explosion!D18:$Z18) -> 95.31% | D18: =SUM(Explosion!E18:$Z18) -> 89.58% | E18: =SUM(Explosion!F18:$Z18) -> 80.09% | F18: =SUM(Explosion!G18:$Z18) -> 68.52% | G18: =SUM(Explosion!H18:$Z18) -> 55.17% | H18: =SUM(Explosion!I18:$Z18) -> 41.36% | I18: =SUM(Explosion!J18:$Z18) -> 29.16% | J18: =SUM(Explosion!K18:$Z18) -> 18.93% | K18: =SUM(Explosion!L18:$Z18) -> 11.21% | L18: =SUM(Explosion!M18:$Z18) -> 6.08% | M18: =SUM(Explosion!N18:$Z18) -> 2.87% | N18: =SUM(Explosion!O18:$Z18) -> 1.14% | O18: =SUM(Explosion!P18:$Z18) -> 0.36% | P18: =SUM(Explosion!Q18:$Z18) -> 0.07% | Q18: =SUM(Explosion!R18:$Z18) -> 0.00% | R18: =SUM(Explosion!S18:$Z18) -> 0.00% | S18: =SUM(Explosion!T18:$Z18) -> 0.00% | T18: =SUM(Explosion!U18:$Z18) -> 0.00% | U18: =SUM(Explosion!V18:$Z18) -> 0.00% | V18: =SUM(Explosion!W18:$Z18) -> 0.00% | W18: =SUM(Explosion!X18:$Z18) -> 0.00% | X18: =SUM(Explosion!Y18:$Z18) -> 0.00% | Y18: =SUM(Explosion!Z18:$Z18) -> 0.00%
A19: 6 | B19: =SUM(Explosion!C19:$Z19) -> 99.22% | C19: =SUM(Explosion!D19:$Z19) -> 97.40% | D19: =SUM(Explosion!E19:$Z19) -> 93.75% | E19: =SUM(Explosion!F19:$Z19) -> 87.27% | F19: =SUM(Explosion!G19:$Z19) -> 78.42% | G19: =SUM(Explosion!H19:$Z19) -> 67.28% | H19: =SUM(Explosion!I19:$Z19) -> 54.65% | I19: =SUM(Explosion!J19:$Z19) -> 42.11% | J19: =SUM(Explosion!K19:$Z19) -> 30.47% | K19: =SUM(Explosion!L19:$Z19) -> 20.61% | L19: =SUM(Explosion!M19:$Z19) -> 13.06% | M19: =SUM(Explosion!N19:$Z19) -> 7.63% | N19: =SUM(Explosion!O19:$Z19) -> 4.08% | O19: =SUM(Explosion!P19:$Z19) -> 1.98% | P19: =SUM(Explosion!Q19:$Z19) -> 0.84% | Q19: =SUM(Explosion!R19:$Z19) -> 0.30% | R19: =SUM(Explosion!S19:$Z19) -> 0.08% | S19: =SUM(Explosion!T19:$Z19) -> 0.01% | T19: =SUM(Explosion!U19:$Z19) -> 0.00% | U19: =SUM(Explosion!V19:$Z19) -> 0.00% | V19: =SUM(Explosion!W19:$Z19) -> 0.00% | W19: =SUM(Explosion!X19:$Z19) -> 0.00% | X19: =SUM(Explosion!Y19:$Z19) -> 0.00% | Y19: =SUM(Explosion!Z19:$Z19) -> 0.00%
A20: 7 | B20: =SUM(Explosion!C20:$Z20) -> 99.61% | C20: =SUM(Explosion!D20:$Z20) -> 98.57% | D20: =SUM(Explosion!E20:$Z20) -> 96.31% | E20: =SUM(Explosion!F20:$Z20) -> 92.03% | F20: =SUM(Explosion!G20:$Z20) -> 85.61% | G20: =SUM(Explosion!H20:$Z20) -> 76.88% | H20: =SUM(Explosion!I20:$Z20) -> 66.15% | I20: =SUM(Explosion!J20:$Z20) -> 54.45% | J20: =SUM(Explosion!K20:$Z20) -> 42.58% | K20: =SUM(Explosion!L20:$Z20) -> 31.53% | L20: =SUM(Explosion!M20:$Z20) -> 22.09% | M20: =SUM(Explosion!N20:$Z20) -> 14.55% | N20: =SUM(Explosion!O20:$Z20) -> 8.99% | O20: =SUM(Explosion!P20:$Z20) -> 5.19% | P20: =SUM(Explosion!Q20:$Z20) -> 2.77% | Q20: =SUM(Explosion!R20:$Z20) -> 1.35% | R20: =SUM(Explosion!S20:$Z20) -> 0.60% | S20: =SUM(Explosion!T20:$Z20) -> 0.23% | T20: =SUM(Explosion!U20:$Z20) -> 0.07% | U20: =SUM(Explosion!V20:$Z20) -> 0.02% | V20: =SUM(Explosion!W20:$Z20) -> 0.00% | W20: =SUM(Explosion!X20:$Z20) -> 0.00% | X20: =SUM(Explosion!Y20:$Z20) -> 0.00% | Y20: =SUM(Explosion!Z20:$Z20) -> 0.00%
A21: 8 | B21: =SUM(Explosion!C21:$Z21) -> 99.80% | C21: =SUM(Explosion!D21:$Z21) -> 99.22% | D21: =SUM(Explosion!E21:$Z21) -> 97.85% | E21: =SUM(Explosion!F21:$Z21) -> 95.10% | F21: =SUM(Explosion!G21:$Z21) -> 90.63% | G21: =SUM(Explosion!H21:$Z21) -> 84.10% | H21: =SUM(Explosion!I21:$Z21) -> 75.50% | I21: =SUM(Explosion!J21:$Z21) -> 65.33% | J21: =SUM(Explosion!K21:$Z21) -> 54.20% | K21: =SUM(Explosion!L21:$Z21) -> 42.96% | L21: =SUM(Explosion!M21:$Z21) -> 32.48% | M21: =SUM(Explosion!N21:$Z21) -> 23.32% | N21: =SUM(Explosion!O21:$Z21) -> 15.87% | O21: =SUM(Explosion!P21:$Z21) -> 10.23% | P21: =SUM(Explosion!Q21:$Z21) -> 6.20% | Q21: =SUM(Explosion!R21:$Z21) -> 3.54% | R21: =SUM(Explosion!S21:$Z21) -> 1.88% | S21: =SUM(Explosion!T21:$Z21) -> 0.93% | T21: =SUM(Explosion!U21:$Z21) -> 0.42% | U21: =SUM(Explosion!V21:$Z21) -> 0.17% | V21: =SUM(Explosion!W21:$Z21) -> 0.06% | W21: =SUM(Explosion!X21:$Z21) -> 0.02% | X21: =SUM(Explosion!Y21:$Z21) -> 0.00% | Y21: =SUM(Explosion!Z21:$Z21) -> 0.00%

Sheet Killchance
A1: Nötiger Schaden | B1: 10 | C1: 10 | D1: 9
A2: Würfel | B2: Nahkampf | C2: Fernkampf | D2: Explosion
A3: 1 | B3: =OFFSET('Nahkampf Mindestens'!$B$3,$A3-1,B$1-1) -> 0.00% | C3: =OFFSET('Fernkampf Mindestens'!$B$3,$A3-1,C$1-1) -> 0.00% | D3: =OFFSET('Explosion Mindestens'!$B$3,$A3-1,D$1-1) -> 0.00%
A4: 2 | B4: =OFFSET('Nahkampf Mindestens'!$B$3,$A4-1,B$1-1) -> 0.00% | C4: =OFFSET('Fernkampf Mindestens'!$B$3,$A4-1,C$1-1) -> 0.00% | D4: =OFFSET('Explosion Mindestens'!$B$3,$A4-1,D$1-1) -> 0.00%
A5: 3 | B5: =OFFSET('Nahkampf Mindestens'!$B$3,$A5-1,B$1-1) -> 0.00% | C5: =OFFSET('Fernkampf Mindestens'!$B$3,$A5-1,C$1-1) -> 0.00% | D5: =OFFSET('Explosion Mindestens'!$B$3,$A5-1,D$1-1) -> 0.46%
A6: 4 | B6: =OFFSET('Nahkampf Mindestens'!$B$3,$A6-1,B$1-1) -> 0.00% | C6: =OFFSET('Fernkampf Mindestens'!$B$3,$A6-1,C$1-1) -> 0.00% | D6: =OFFSET('Explosion Mindestens'!$B$3,$A6-1,D$1-1) -> 3.32% | P6: =OFFSET(P8,0,1) -> 3
A7: 5 | B7: =OFFSET('Nahkampf Mindestens'!$B$3,$A7-1,B$1-1) -> 0.01% | C7: =OFFSET('Fernkampf Mindestens'!$B$3,$A7-1,C$1-1) -> 0.41% | D7: =OFFSET('Explosion Mindestens'!$B$3,$A7-1,D$1-1) -> 9.61%
A8: 6 | B8: =OFFSET('Nahkampf Mindestens'!$B$3,$A8-1,B$1-1) -> 0.58% | C8: =OFFSET('Fernkampf Mindestens'!$B$3,$A8-1,C$1-1) -> 3.84% | D8: =OFFSET('Explosion Mindestens'!$B$3,$A8-1,D$1-1) -> 19.04% | P8: 1 | Q8: 3
A9: 7 | B9: =OFFSET('Nahkampf Mindestens'!$B$3,$A9-1,B$1-1) -> 4.80% | C9: =OFFSET('Fernkampf Mindestens'!$B$3,$A9-1,C$1-1) -> 12.53% | D9: =OFFSET('Explosion Mindestens'!$B$3,$A9-1,D$1-1) -> 30.48% | P9: 2
A10: 8 | B10: =OFFSET('Nahkampf Mindestens'!$B$3,$A10-1,B$1-1) -> 17.50% | C10: =OFFSET('Fernkampf Mindestens'!$B$3,$A10-1,C$1-1) -> 26.08% | D10: =OFFSET('Explosion Mindestens'!$B$3,$A10-1,D$1-1) -> 42.58%
A24: Würfel | B24: Nahkampf | C24: Fernkampf | D24: Explosion
A25: 1 | B25: =OFFSET('Nahkampf Mindestens'!$B$14,$A25-1,B$1-1) -> 0.00% | C25: =OFFSET('Fernkampf Mindestens'!$B$14,$A25-1,C$1-1) -> 0.00% | D25: =OFFSET('Explosion Mindestens'!$B$14,$A25-1,D$1-1) -> 0.00%
A26: 2 | B26: =OFFSET('Nahkampf Mindestens'!$B$14,$A26-1,B$1-1) -> 0.00% | C26: =OFFSET('Fernkampf Mindestens'!$B$14,$A26-1,C$1-1) -> 0.00% | D26: =OFFSET('Explosion Mindestens'!$B$14,$A26-1,D$1-1) -> 0.00%
A27: 3 | B27: =OFFSET('Nahkampf Mindestens'!$B$14,$A27-1,B$1-1) -> 0.00% | C27: =OFFSET('Fernkampf Mindestens'!$B$14,$A27-1,C$1-1) -> 0.00% | D27: =OFFSET('Explosion Mindestens'!$B$14,$A27-1,D$1-1) -> 1.62%
A28: 4 | B28: =OFFSET('Nahkampf Mindestens'!$B$14,$A28-1,B$1-1) -> 0.00% | C28: =OFFSET('Fernkampf Mindestens'!$B$14,$A28-1,C$1-1) -> 0.00% | D28: =OFFSET('Explosion Mindestens'!$B$14,$A28-1,D$1-1) -> 9.01%
A29: 5 | B29: =OFFSET('Nahkampf Mindestens'!$B$14,$A29-1,B$1-1) -> 0.07% | C29: =OFFSET('Fernkampf Mindestens'!$B$14,$A29-1,C$1-1) -> 1.78% | D29: =OFFSET('Explosion Mindestens'!$B$14,$A29-1,D$1-1) -> 18.93%
A30: 6 | B30: =OFFSET('Nahkampf Mindestens'!$B$14,$A30-1,B$1-1) -> 1.60% | C30: =OFFSET('Fernkampf Mindestens'!$B$14,$A30-1,C$1-1) -> 10.93% | D30: =OFFSET('Explosion Mindestens'!$B$14,$A30-1,D$1-1) -> 30.47%
A31: 7 | B31: =OFFSET('Nahkampf Mindestens'!$B$14,$A31-1,B$1-1) -> 10.68% | C31: =OFFSET('Fernkampf Mindestens'!$B$14,$A31-1,C$1-1) -> 25.65% | D31: =OFFSET('Explosion Mindestens'!$B$14,$A31-1,D$1-1) -> 42.58%
A32: 8 | B32: =OFFSET('Nahkampf Mindestens'!$B$14,$A32-1,B$1-1) -> 32.61% | C32: =OFFSET('Fernkampf Mindestens'!$B$14,$A32-1,C$1-1) -> 41.98% | D32: =OFFSET('Explosion Mindestens'!$B$14,$A32-1,D$1-1) -> 54.20%
